{"text_format":"1","workbook":"xlsx","n_sheets":17,"sheets":["表紙","取扱基準","災害時注意事項","広告主様へのお願い","広告主様へのお願い (2)","三重県","地図","桑名市・桑名郡","いなべ市・員弁郡","四日市市","三重郡・亀山市・鈴鹿市","津市","松阪市・多気郡","伊勢市・度会郡","鳥羽市・志摩市・尾鷲市","熊野市・北牟婁郡・南牟婁郡","伊賀市・名張市・新宮市"],"not_rendered":{"charts":0,"images":2,"macros":1,"external_links":0,"defined_names":6,"comments":0,"pivot_tables":0},"unopened":[],"bounds":{"document_bytes":16777216,"sheet_cells":100000,"rows_first":2000,"rows_last":500,"rows_between":2000,"halvings":0,"cell_chars":16384,"cell_head_chars":4096},"cells_cut":0,"cells_raw":0,"read":"whole","date_system":"1900"}

{"sheet":"表紙","index":0,"n_rows":15,"n_cols":1,"rows_kept":15,"cut":false,"hidden":false,"merged":[]}
[]
[]
[]
[]
[]
[]
[]
[]
[]
[]
[]
[]
[]
["2026年前期"]
["新聞折込広告紙数表"]

{"sheet":"取扱基準","index":1,"n_rows":49,"n_cols":1,"rows_kept":49,"cut":false,"hidden":false,"merged":[[0,0,0,1],[4,0,4,1],[6,0,6,1]]}
[]
["新聞折込広告取扱基準"]
[]
[]
["　当社は日本新聞協会の「折込広告の取扱基準」および、新聞社の「広告掲載基準」を参考として、折込広告取扱基準を設けております。"]
[]
["　つぎのような折込チラシはお引き受けできかねます。"]
[]
[]
["（1） 広告の内容がはっきりしないもの。および、広告主の所在地、事業所名、ＨＰアドレス等のいずれの記載もなく、広告責任者が明確でないもの。"]
[]
["（2） 虚偽または誇大表現により、誤認されるおそれのあるもの。「日本一」「業界一」等の最高・最大級の表現、「絶対に」「確実に」等、商品の性能、"]
[]
["　　　効能、効果を保証する断定的表現を用いたもの。"]
[]
["（3） 景表法（不当景品付販売・不当表示の禁止）、不正競争防止法（コピー商品等の販売宣伝の禁止）などのほか、薬事法、医療法など法律や条例に"]
[]
["　　　触れると思われるもの。（医薬品等を否定する内容や迷信に類する非科学的な内容のもの等）"]
["　　"]
["（4） 広告主の主観的意見、意図、表現がみられ、他者を誹謗中傷し、結果的に他者の名誉、信用を傷つけるおそれがある表現のもの。（誹謗中傷広告等）"]
["     "]
["（5）「新聞業における公正競争規約」に触れる抽選券・金券などを刷り込んだもの、クーポン付き広告に関する規則、運営細則に違反するもの。"]
["　　　"]
["（6） 政治問題や係争中（もしくは係争が予想される）問題について、一方的な主張を述べたものや、立候補が予定されている人物の名称を記載するなど、"]
[]
["　　　選挙の事前運動と推量されるもの。"]
["　　　"]
["（7） 煽情的な言葉や、写真、イラスト等を用いた表現で、暴力・犯罪を肯定・礼讃するなど、公序良俗に反する表現のもの。"]
["      "]
["（8） 不動産広告で、広告主の名称、所在地、販売物件の所在地、地目、建築の可否、建ぺい率、交通アクセス、価格、管理費、維持費、販売条件、"]
[]
["      宅建業法による免許証番号などが明確に記載されてないもの。"]
["      "]
["（9） 貸金業広告で、貸金業規制法で定められている必要事項が表示されていないもの。 （商号、名称、氏名、登録番号、住所、利率等）"]
["     "]
["（10）発行本社の新聞と混同、誤認されると思われるものや、他紙の社名、題字、記事、催事などが掲載、引用されているもの。"]
[]
["      その他、著作権・肖像権・商標権等を侵害するおそれのあるもの。"]
["　　　"]
["（11）新聞社がそれぞれ定めた広告掲載基準に照らして、新聞折込が不適当と認められるもの。"]
["     "]
["（12）新聞販売店の営業活動に支障をきたし、不利益になると判断されるもの。"]
[]
[]
[]
["■ 上記に限らず、判断がむずかしいものは、新聞発行本社、関係諸機関の指導・協議によって決めさせていただきます。"]
[]
["   なお、ご不明な点がございましたら当社へご相談下さい。"]
["   "]

{"sheet":"災害時注意事項","index":2,"n_rows":49,"n_cols":2,"rows_kept":49,"cut":false,"hidden":false,"merged":[[1,0,1,4],[23,1,23,3],[25,1,25,3]]}
[]
["大規模災害発生時における新聞折込広告の取り扱いについて"]
[]
[]
[null,"大規模な災害（大地震、津波、洪水、豪雪、大火災、大規模停電、火山噴火、原子力発電所の事故、新型感染症の大流行、他国からの攻撃など）に見舞われた"]
[]
[null,"場合、中日新聞折込広告協同組合加盟の折込会社と中日新聞販売店は被災の状況を的確に判断し、折込広告をご愛読者へお届けするために全力を傾注します。"]
[]
[null,"しかしながらライフラインや通信網、輸送ルートなどが遮断され、被災地の新聞販売店や従業員に甚大な被害が及んだ場合は、クライアント様のご要望にお応"]
[]
[null,"えできない場合もあります。"]
[]
[null,"この様に事前の予測と回避が不可能な事態が発生し、折込会社と新聞販売店の努力にも関わらず指定日に新聞折込が出来なかった場合、折込会社と新聞販売店"]
[]
[null,"は一切の責任を負う事ができません。あらかじめご容赦いただきますようお願い申しあげます。"]
["   "]
[]
[]
[]
[]
[]
[]
[]
[null,"東海地震に関する「警戒宣言」発令時の折込広告の取り扱いについて"]
[]
[null,"『大地震への警戒宣言や注意情報が発令された場合、新聞折込広告は中止になります』"]
[]
[]
[null,"　愛知県、三重県の大部分の市町村と岐阜県中津川市は大規模地震対策措置法により、地震防災対策強化地域に指定されています。指定された地域で大規"]
[]
[null,"　模な地震の発生が予知されますと、内閣総理大臣から警戒宣言が発令されることになっています。また東海地震の前兆現象が高まると、気象庁から注意"]
[]
[null,"　情報が発表されます。"]
[]
[null,"　警戒宣言発令後は交通規制が始まり、指定地域内へ車両の進入が禁止されるほか、一般の道路も時速20㎞に速度制限されるため大渋滞の発生が予想され"]
[]
[null,"　ます。"]
[]
[null,"　このため東海地震の注意情報や警戒宣言の発令と同時に、お客様からお預かりした新聞折込広告の配送作業は「中止」させていただきます。配送中の車"]
[]
[null,"　両に対しては折込広告をお預かりした状態ですみやかに帰社するように指示しますが、交通事情と警察官の指示によって止むを得ず路上に駐車し避難し"]
[]
[null,"　なければならない事も想定されます。"]
[]
[null,"　すでに配送が完了した新聞折込広告も、新聞販売店での組み込み作業が「中止」になり新聞折込ができなくなります。幸い注意情報や警戒宣言が解除"]
[]
[null,"　された場合も、混乱が解消するまでしばらくの間は新聞折込ができない場合もあります。"]
[]
[null,"　何卒ご理解とご了承をいただけますようお願いいたします。"]

{"sheet":"広告主様へのお願い","index":3,"n_rows":52,"n_cols":2,"rows_kept":52,"cut":false,"hidden":false,"merged":[[1,0,1,5],[17,1,17,2]]}
[]
["広告主様へのお願い"]
[]
["1. 配布明細の連絡について"]
[]
["　　折込先配布明細のご指示は、ＦＡＸまたはメールで必ずチラシの搬入期日以前にご連絡下さい。"]
[]
["　　折込広告は、発送配布の都合上、50枚を単位として扱います。"]
[]
["　　配布指定部数と実際の部数が異なるときは、当社において一部配布数の変更、隣接地区への配布など、調整を行わせて頂く場合があります。"]
[]
["　　配布明細連絡をいただく際、正確なサイズをご指示願います。"]
[]
["　　※ 特に普通紙と厚紙の紙区別は注意して下さい。（四六版　110㎏より厚紙扱いとなります）"]
[]
["　　※ 新聞に収まる形状が原則ですが、例えばＢ４二ツ折の場合は二ツ折（Ｂ３）単価の適用となります。"]
[]
[null,"合売記号の見方"]
[]
[]
[null,"　　C…中日　　　N…日経　　　A…朝日　　　M…毎日　　　Y…読売　　 G…岐阜　　　I…伊勢　　　S…産経"]
[]
[]
[null,"合売店については、取扱い部数が多い媒体の欄に記載となります。"]
[]
[null,"☆…月曜日折込不可"]
[]
[null,"△…折込日が休刊日翌日の場合、先送り地区"]
[]
[]
["2. 折込広告の搬入時間について"]
[]
["　　※ 折込日2日前ＡＭ10時（日・祝日除く）までに搬入して下さい。但し下記地区は3日前ＡＭ10時（日・祝日除く）までに搬入して下さい。"]
[]
["　　　 田原市、新城市（設楽地区）、北設楽郡、三重県南勢地区"]
[]
["　　　（上記以外の場合は随時お問い合わせ下さい。）"]
[]
["　　※ 搬入時間を外れた持込みおよび、配布明細の事前連絡のない場合、折込指定日の責は負いかねます。"]
[]
["　　※ 折込広告の各新聞店への発送後の中止、変更等は出来かねます。"]
[]
["　　※ 年末年始、ゴールデンウィーク、お盆期間等については変則となります。"]
[]
[]
["3. 行政区表示について"]
[]
["　　紙数表は実際の行政区と異なる地区もあります。資料は参考として掲載してありますので行政区へ指定・限定とした場合、"]
[]
["　　一部区域が入らない時と指定以外の地区に入ったりする場合が生じますので事前に当社までご相談下さい。"]
[]
["    "]

{"sheet":"広告主様へのお願い (2)","index":4,"n_rows":52,"n_cols":2,"rows_kept":52,"cut":false,"hidden":false,"merged":[[9,1,9,3],[10,1,10,3],[15,1,15,3],[16,1,16,3]]}
[]
["4. 月曜日および新聞休刊日の翌日は、一部地域において、折込できないところがあります。（下記一覧表参照）"]
[]
["　　また選挙の開票報道等の都合で、新聞が遅れるときは、折込できません。"]
[]
["　　※下記の地区または販売店は地域事情などにより折込の条件が異なります。ご注意ください。"]
[]
[null,"①月曜日折込不可"]
[]
[null,"　該当販売店"]
[null,"　岐阜県郡上市：正ヶ洞　　　岐阜県高山市：国府"]
[]
[]
[null,"②休刊日翌日折込が先送りとなる地区"]
[]
[null,"　該当地区"]
[null,"　愛知県新城市（設楽地区）　　　北設楽郡"]
[]
[]
["5. パンフレット・小冊子に類するもの等は、その形状・内容により判断させて頂きます。"]
[]
[]
["6. 二つ以上の事業所が連合（連名）して行う広告は、連合広告となり、一部地区で料金が異なったり、取り扱い不可となる場合があります。"]
[]
["　　必ず事前にご相談下さい。内容により判断させて頂きます。"]
[]
[]
["　　〈適用外〉"]
[]
["　　・実在する商店街、夏祭り等実行委員会、テナント、ショッピングモール等。"]
[]
["　　・パチンコ・映画館・サウナなど、同じ敷地にある複合施設。"]
[]
["　　・オーナーが同一の企業グループ広告。"]
[]
["　　・複数企業が業務提携や同一テーマに基づき共同制作したコラボレーション広告。"]
[]
["　　（但し、連絡先などの記載は広告責任者1社に限る。）　"]
[]
["　　・雑誌・情報誌が、自誌ＰＲを目的に実際の誌面を使用再構成した広告。"]
[]
["　　・落成広告（企業名を掲載する企業が協賛企業であり、営利目的でないこと）"]
[]
["   "]
["7. 折込広告の在庫管理に関して"]
[]
["　　次回以降の折込広告も同時に持ち込まれるお客様に対しましては、弊社配送センターにて"]
[]
["　　預かりを承りますが、保管期間は原則１ヶ月とさせて頂きます。"]
[]
["     "]
["8. 全国取り次ぎを行っております。ご用の際はご相談下さい。"]

{"sheet":"三重県","index":5,"n_rows":28,"n_cols":21,"rows_kept":28,"cut":false,"hidden":false,"merged":[[3,1,3,3],[3,4,3,6],[3,7,3,9],[3,10,3,12],[3,13,3,15],[0,1,1,4],[0,5,0,6],[0,7,0,13],[0,15,0,17],[0,19,1,20],[26,19,26,20],[4,19,25,20],[1,5,1,6],[1,7,1,13],[1,15,1,17],[3,16,3,18],[3,19,3,20]]}
["折込日",null,null,null,null,"広告主",null,null,null,null,null,null,null,null,"サイズ",null,null,null,"取次店"]
[null,null,null,null,null,"チラシ銘柄",null,null,null,null,null,null,null,null,"部数",{"$f":"S27","v":0}]
["三重県",null,null,null,null,null,null,null,null,null,null,null,null,null,null,null,null,null,null,null,"2026年前期（3月1日以降）"]
["地区","中日新聞",null,null,"朝日新聞",null,null,"毎日新聞",null,null,"読売新聞",null,null,"その他",null,null,"合　　計",null,null,"備考"]
["桑名市",{"$f":"VALUE(TRIM(LEFT(桑名市・桑名郡!E26,2)))","v":10},{"$f":"桑名市・桑名郡!F26","v":21050},{"$f":"桑名市・桑名郡!G26","v":0},{"$f":"VALUE(TRIM(LEFT(桑名市・桑名郡!I26,2)))","v":4},{"$f":"桑名市・桑名郡!J26","v":8950},{"$f":"桑名市・桑名郡!K26","v":0},{"$f":"VALUE(TRIM(LEFT(桑名市・桑名郡!M26,2)))","v":0},{"$f":"桑名市・桑名郡!N26","v":0},{"$f":"桑名市・桑名郡!O26","v":0},{"$f":"VALUE(TRIM(LEFT(桑名市・桑名郡!Q26,2)))","v":2},{"$f":"桑名市・桑名郡!R26","v":2150},{"$f":"桑名市・桑名郡!S26","v":0},{"$f":"VALUE(TRIM(LEFT(桑名市・桑名郡!U26,2)))","v":0},{"$f":"桑名市・桑名郡!V26","v":0},{"$f":"桑名市・桑名郡!W26","v":0},{"$f":"SUM(B5,E5,H5,K5,N5)","v":16},{"$f":"SUM(C5,F5,I5,L5,O5)","v":32150},{"$f":"IFERROR((SUM(D5,G5,J5,M5,P5)),\" \")","v":0}]
["桑名郡",{"$f":"VALUE(TRIM(LEFT(桑名市・桑名郡!E48,2)))","v":1},{"$f":"桑名市・桑名郡!F48","v":0},{"$f":"桑名市・桑名郡!G48","v":0},{"$f":"VALUE(TRIM(LEFT(桑名市・桑名郡!I48,2)))","v":0},{"$f":"桑名市・桑名郡!J48","v":0},{"$f":"桑名市・桑名郡!K48","v":0},{"$f":"VALUE(TRIM(LEFT(桑名市・桑名郡!M48,2)))","v":0},{"$f":"桑名市・桑名郡!N48","v":0},{"$f":"桑名市・桑名郡!O48","v":0},{"$f":"VALUE(TRIM(LEFT(桑名市・桑名郡!Q48,2)))","v":0},{"$f":"桑名市・桑名郡!R48","v":0},{"$f":"桑名市・桑名郡!S48","v":0},{"$f":"VALUE(TRIM(LEFT(桑名市・桑名郡!U48,2)))","v":0},{"$f":"桑名市・桑名郡!V48","v":0},{"$f":"桑名市・桑名郡!W48","v":0},1,0,0]
["いなべ市",{"$f":"VALUE(TRIM(LEFT(いなべ市・員弁郡!E26,2)))","v":6},{"$f":"いなべ市・員弁郡!F26","v":7500},{"$f":"いなべ市・員弁郡!G26","v":0},{"$f":"VALUE(TRIM(LEFT(いなべ市・員弁郡!I26,2)))","v":0},{"$f":"いなべ市・員弁郡!J26","v":0},{"$f":"いなべ市・員弁郡!K26","v":0},{"$f":"VALUE(TRIM(LEFT(いなべ市・員弁郡!M26,2)))","v":0},{"$f":"いなべ市・員弁郡!N26","v":0},{"$f":"いなべ市・員弁郡!O26","v":0},{"$f":"VALUE(TRIM(LEFT(いなべ市・員弁郡!Q26,2)))","v":2},{"$f":"いなべ市・員弁郡!R26","v":550},{"$f":"いなべ市・員弁郡!S26","v":0},{"$f":"VALUE(TRIM(LEFT(いなべ市・員弁郡!U26,2)))","v":0},{"$f":"いなべ市・員弁郡!V26","v":0},{"$f":"いなべ市・員弁郡!W26","v":0},8,8050,0]
["員弁郡",{"$f":"VALUE(TRIM(LEFT(いなべ市・員弁郡!E48,2)))","v":1},{"$f":"いなべ市・員弁郡!F48","v":3200},{"$f":"いなべ市・員弁郡!G48","v":0},{"$f":"VALUE(TRIM(LEFT(いなべ市・員弁郡!I48,2)))","v":0},{"$f":"いなべ市・員弁郡!J48","v":0},{"$f":"いなべ市・員弁郡!K48","v":0},{"$f":"VALUE(TRIM(LEFT(いなべ市・員弁郡!M48,2)))","v":0},{"$f":"いなべ市・員弁郡!N48","v":0},{"$f":"いなべ市・員弁郡!O48","v":0},{"$f":"VALUE(TRIM(LEFT(いなべ市・員弁郡!Q48,2)))","v":1},{"$f":"いなべ市・員弁郡!R48","v":350},{"$f":"いなべ市・員弁郡!S48","v":0},{"$f":"VALUE(TRIM(LEFT(いなべ市・員弁郡!U48,2)))","v":0},{"$f":"いなべ市・員弁郡!V48","v":0},{"$f":"いなべ市・員弁郡!W48","v":0},2,3550,0]
["四日市市",{"$f":"VALUE(TRIM(LEFT(四日市市!E48,2)))","v":20},{"$f":"四日市市!F48","v":41750},{"$f":"四日市市!G48","v":0},{"$f":"VALUE(TRIM(LEFT(四日市市!I48,2)))","v":11},{"$f":"四日市市!J48","v":12700},{"$f":"四日市市!K48","v":0},{"$f":"VALUE(TRIM(LEFT(四日市市!M48,2)))","v":4},{"$f":"四日市市!N48","v":7400},{"$f":"四日市市!O48","v":0},{"$f":"VALUE(TRIM(LEFT(四日市市!Q48,2)))","v":11},{"$f":"四日市市!R48","v":4750},{"$f":"四日市市!S48","v":0},{"$f":"VALUE(TRIM(LEFT(四日市市!U48,2)))","v":0},{"$f":"四日市市!V48","v":0},{"$f":"四日市市!W48","v":0},46,66600,0]
["三重郡",{"$f":"VALUE(TRIM(LEFT(三重郡・亀山市・鈴鹿市!E14,2)))","v":6},{"$f":"三重郡・亀山市・鈴鹿市!F14","v":9750},{"$f":"三重郡・亀山市・鈴鹿市!G14","v":0},{"$f":"VALUE(TRIM(LEFT(三重郡・亀山市・鈴鹿市!I14,2)))","v":2},{"$f":"三重郡・亀山市・鈴鹿市!J14","v":1100},{"$f":"三重郡・亀山市・鈴鹿市!K14","v":0},{"$f":"VALUE(TRIM(LEFT(三重郡・亀山市・鈴鹿市!M14,2)))","v":0},{"$f":"三重郡・亀山市・鈴鹿市!N14","v":0},{"$f":"三重郡・亀山市・鈴鹿市!O14","v":0},{"$f":"VALUE(TRIM(LEFT(三重郡・亀山市・鈴鹿市!Q14,2)))","v":1},{"$f":"三重郡・亀山市・鈴鹿市!R14","v":650},{"$f":"三重郡・亀山市・鈴鹿市!S14","v":0},{"$f":"VALUE(TRIM(LEFT(三重郡・亀山市・鈴鹿市!U14,2)))","v":0},{"$f":"三重郡・亀山市・鈴鹿市!V14","v":0},{"$f":"三重郡・亀山市・鈴鹿市!W14","v":0},9,11500,0]
["亀山市",{"$f":"VALUE(TRIM(LEFT(三重郡・亀山市・鈴鹿市!E27,2)))","v":6},{"$f":"三重郡・亀山市・鈴鹿市!F27","v":7350},{"$f":"三重郡・亀山市・鈴鹿市!G27","v":0},{"$f":"VALUE(TRIM(LEFT(三重郡・亀山市・鈴鹿市!I27,2)))","v":2},{"$f":"三重郡・亀山市・鈴鹿市!J27","v":2050},{"$f":"三重郡・亀山市・鈴鹿市!K27","v":0},{"$f":"VALUE(TRIM(LEFT(三重郡・亀山市・鈴鹿市!M27,2)))","v":0},{"$f":"三重郡・亀山市・鈴鹿市!N27","v":0},{"$f":"三重郡・亀山市・鈴鹿市!O27","v":0},{"$f":"VALUE(TRIM(LEFT(三重郡・亀山市・鈴鹿市!Q27,2)))","v":1},{"$f":"三重郡・亀山市・鈴鹿市!R27","v":800},{"$f":"三重郡・亀山市・鈴鹿市!S27","v":0},{"$f":"VALUE(TRIM(LEFT(三重郡・亀山市・鈴鹿市!U27,2)))","v":0},{"$f":"三重郡・亀山市・鈴鹿市!V27","v":0},{"$f":"三重郡・亀山市・鈴鹿市!W27","v":0},9,10200,0]
["鈴鹿市",{"$f":"VALUE(TRIM(LEFT(三重郡・亀山市・鈴鹿市!E48,2)))","v":13},{"$f":"三重郡・亀山市・鈴鹿市!F48","v":25600},{"$f":"三重郡・亀山市・鈴鹿市!G48","v":0},{"$f":"VALUE(TRIM(LEFT(三重郡・亀山市・鈴鹿市!I48,2)))","v":7},{"$f":"三重郡・亀山市・鈴鹿市!J48","v":10600},{"$f":"三重郡・亀山市・鈴鹿市!K48","v":0},{"$f":"VALUE(TRIM(LEFT(三重郡・亀山市・鈴鹿市!M48,2)))","v":5},{"$f":"三重郡・亀山市・鈴鹿市!N48","v":3300},{"$f":"三重郡・亀山市・鈴鹿市!O48","v":0},{"$f":"VALUE(TRIM(LEFT(三重郡・亀山市・鈴鹿市!Q48,2)))","v":4},{"$f":"三重郡・亀山市・鈴鹿市!R48","v":2650},{"$f":"三重郡・亀山市・鈴鹿市!S48","v":0},{"$f":"VALUE(TRIM(LEFT(三重郡・亀山市・鈴鹿市!U48,2)))","v":0},{"$f":"三重郡・亀山市・鈴鹿市!V48","v":0},{"$f":"三重郡・亀山市・鈴鹿市!W48","v":0},29,42150,0]
["津市",{"$f":"VALUE(TRIM(LEFT(津市!E48,2)))","v":29},{"$f":"津市!F48","v":45550},{"$f":"津市!G48","v":0},{"$f":"VALUE(TRIM(LEFT(津市!I48,2)))","v":3},{"$f":"津市!J48","v":9650},{"$f":"津市!K48","v":0},{"$f":"VALUE(TRIM(LEFT(津市!M48,2)))","v":4},{"$f":"津市!N48","v":4850},{"$f":"津市!O48","v":0},{"$f":"VALUE(TRIM(LEFT(津市!Q48,2)))","v":11},{"$f":"津市!R48","v":7000},{"$f":"津市!S48","v":0},{"$f":"VALUE(TRIM(LEFT(津市!U48,2)))","v":0},{"$f":"津市!V48","v":0},{"$f":"津市!W48","v":0},{"$f":"SUM(B13,E13,H13,K13,N13)","v":47},67050,0]
["松阪市",{"$f":"VALUE(TRIM(LEFT(松阪市・多気郡!E26,2)))","v":14},{"$f":"松阪市・多気郡!F26","v":20950},{"$f":"松阪市・多気郡!G26","v":0},{"$f":"VALUE(TRIM(LEFT(松阪市・多気郡!I26,2)))","v":5},{"$f":"松阪市・多気郡!J26","v":8450},{"$f":"松阪市・多気郡!K26","v":0},{"$f":"VALUE(TRIM(LEFT(松阪市・多気郡!M26,2)))","v":0},{"$f":"松阪市・多気郡!N26","v":0},{"$f":"松阪市・多気郡!O26","v":0},{"$f":"VALUE(TRIM(LEFT(松阪市・多気郡!Q26,2)))","v":7},{"$f":"松阪市・多気郡!R26","v":5200},{"$f":"松阪市・多気郡!S26","v":0},{"$f":"VALUE(TRIM(LEFT(松阪市・多気郡!U26,2)))","v":0},{"$f":"松阪市・多気郡!V26","v":0},{"$f":"松阪市・多気郡!W26","v":0},26,34600,0]
["多気郡",{"$f":"VALUE(TRIM(LEFT(松阪市・多気郡!E48,2)))","v":5},{"$f":"松阪市・多気郡!F48","v":6000},{"$f":"松阪市・多気郡!G48","v":0},{"$f":"VALUE(TRIM(LEFT(松阪市・多気郡!I48,2)))","v":1},{"$f":"松阪市・多気郡!J48","v":1900},{"$f":"松阪市・多気郡!K48","v":0},{"$f":"VALUE(TRIM(LEFT(松阪市・多気郡!M48,2)))","v":0},{"$f":"松阪市・多気郡!N48","v":0},{"$f":"松阪市・多気郡!O48","v":0},{"$f":"VALUE(TRIM(LEFT(松阪市・多気郡!Q48,2)))","v":1},{"$f":"松阪市・多気郡!R48","v":500},{"$f":"松阪市・多気郡!S48","v":0},{"$f":"VALUE(TRIM(LEFT(松阪市・多気郡!U48,2)))","v":0},{"$f":"松阪市・多気郡!V48","v":0},{"$f":"松阪市・多気郡!W48","v":0},7,8400,0]
["伊勢市",{"$f":"VALUE(TRIM(LEFT(伊勢市・度会郡!E26,2)))","v":11},{"$f":"伊勢市・度会郡!F26","v":20100},{"$f":"伊勢市・度会郡!G26","v":0},{"$f":"VALUE(TRIM(LEFT(伊勢市・度会郡!I26,2)))","v":3},{"$f":"伊勢市・度会郡!J26","v":4650},{"$f":"伊勢市・度会郡!K26","v":0},{"$f":"VALUE(TRIM(LEFT(伊勢市・度会郡!M26,2)))","v":8},{"$f":"伊勢市・度会郡!N26","v":8850},{"$f":"伊勢市・度会郡!O26","v":0},{"$f":"VALUE(TRIM(LEFT(伊勢市・度会郡!Q26,2)))","v":5},{"$f":"伊勢市・度会郡!R26","v":4650},{"$f":"伊勢市・度会郡!S26","v":0},{"$f":"VALUE(TRIM(LEFT(伊勢市・度会郡!U26,2)))","v":1},{"$f":"伊勢市・度会郡!V26","v":950},{"$f":"伊勢市・度会郡!W26","v":0},28,39200,0]
["度会郡",{"$f":"VALUE(TRIM(LEFT(伊勢市・度会郡!E48,2)))","v":13},{"$f":"伊勢市・度会郡!F48","v":5400},{"$f":"伊勢市・度会郡!G48","v":0},{"$f":"VALUE(TRIM(LEFT(伊勢市・度会郡!I48,2)))","v":0},{"$f":"伊勢市・度会郡!J48","v":0},{"$f":"伊勢市・度会郡!K48","v":0},{"$f":"VALUE(TRIM(LEFT(伊勢市・度会郡!M48,2)))","v":0},{"$f":"伊勢市・度会郡!N48","v":0},{"$f":"伊勢市・度会郡!O48","v":0},{"$f":"VALUE(TRIM(LEFT(伊勢市・度会郡!Q48,2)))","v":2},{"$f":"伊勢市・度会郡!R48","v":1400},{"$f":"伊勢市・度会郡!S48","v":0},{"$f":"VALUE(TRIM(LEFT(伊勢市・度会郡!U48,2)))","v":0},{"$f":"伊勢市・度会郡!V48","v":0},{"$f":"伊勢市・度会郡!W48","v":0},15,6800,0]
["鳥羽市",{"$f":"VALUE(TRIM(LEFT(鳥羽市・志摩市・尾鷲市!E14,2)))","v":2},{"$f":"鳥羽市・志摩市・尾鷲市!F14","v":3150},{"$f":"鳥羽市・志摩市・尾鷲市!G14","v":0},{"$f":"VALUE(TRIM(LEFT(鳥羽市・志摩市・尾鷲市!I14,2)))","v":0},{"$f":"鳥羽市・志摩市・尾鷲市!J14","v":0},{"$f":"鳥羽市・志摩市・尾鷲市!K14","v":0},{"$f":"VALUE(TRIM(LEFT(鳥羽市・志摩市・尾鷲市!M14,2)))","v":0},{"$f":"鳥羽市・志摩市・尾鷲市!N14","v":0},{"$f":"鳥羽市・志摩市・尾鷲市!O14","v":0},{"$f":"VALUE(TRIM(LEFT(鳥羽市・志摩市・尾鷲市!Q14,2)))","v":2},{"$f":"鳥羽市・志摩市・尾鷲市!R14","v":900},{"$f":"鳥羽市・志摩市・尾鷲市!S14","v":0},{"$f":"VALUE(TRIM(LEFT(鳥羽市・志摩市・尾鷲市!U14,2)))","v":0},{"$f":"鳥羽市・志摩市・尾鷲市!V14","v":0},{"$f":"鳥羽市・志摩市・尾鷲市!W14","v":0},4,4050,0]
["志摩市",{"$f":"VALUE(TRIM(LEFT(鳥羽市・志摩市・尾鷲市!E31,2)))","v":4},{"$f":"鳥羽市・志摩市・尾鷲市!F31","v":9000},{"$f":"鳥羽市・志摩市・尾鷲市!G31","v":0},{"$f":"VALUE(TRIM(LEFT(鳥羽市・志摩市・尾鷲市!I31,2)))","v":0},{"$f":"鳥羽市・志摩市・尾鷲市!J31","v":0},{"$f":"鳥羽市・志摩市・尾鷲市!K31","v":0},{"$f":"VALUE(TRIM(LEFT(鳥羽市・志摩市・尾鷲市!M31,2)))","v":0},{"$f":"鳥羽市・志摩市・尾鷲市!N31","v":0},{"$f":"鳥羽市・志摩市・尾鷲市!O31","v":0},{"$f":"VALUE(TRIM(LEFT(鳥羽市・志摩市・尾鷲市!Q31,2)))","v":6},{"$f":"鳥羽市・志摩市・尾鷲市!R31","v":3250},{"$f":"鳥羽市・志摩市・尾鷲市!S31","v":0},{"$f":"VALUE(TRIM(LEFT(鳥羽市・志摩市・尾鷲市!U31,2)))","v":0},{"$f":"鳥羽市・志摩市・尾鷲市!V31","v":0},{"$f":"鳥羽市・志摩市・尾鷲市!W31","v":0},10,12250,0]
["尾鷲市",{"$f":"VALUE(TRIM(LEFT(鳥羽市・志摩市・尾鷲市!E48,2)))","v":4},{"$f":"鳥羽市・志摩市・尾鷲市!F48","v":3600},{"$f":"鳥羽市・志摩市・尾鷲市!G48","v":0},{"$f":"VALUE(TRIM(LEFT(鳥羽市・志摩市・尾鷲市!I48,2)))","v":0},{"$f":"鳥羽市・志摩市・尾鷲市!J48","v":0},{"$f":"鳥羽市・志摩市・尾鷲市!K48","v":0},{"$f":"VALUE(TRIM(LEFT(鳥羽市・志摩市・尾鷲市!M48,2)))","v":0},{"$f":"鳥羽市・志摩市・尾鷲市!N48","v":0},{"$f":"鳥羽市・志摩市・尾鷲市!O48","v":0},{"$f":"VALUE(TRIM(LEFT(鳥羽市・志摩市・尾鷲市!Q48,2)))","v":1},{"$f":"鳥羽市・志摩市・尾鷲市!R48","v":850},{"$f":"鳥羽市・志摩市・尾鷲市!S48","v":0},{"$f":"VALUE(TRIM(LEFT(鳥羽市・志摩市・尾鷲市!U48,2)))","v":0},{"$f":"鳥羽市・志摩市・尾鷲市!V48","v":0},{"$f":"鳥羽市・志摩市・尾鷲市!W48","v":0},5,4450,0]
["熊野市",{"$f":"VALUE(TRIM(LEFT(熊野市・北牟婁郡・南牟婁郡!E14,2)))","v":3},{"$f":"熊野市・北牟婁郡・南牟婁郡!F14","v":3450},{"$f":"熊野市・北牟婁郡・南牟婁郡!G14","v":0},{"$f":"VALUE(TRIM(LEFT(熊野市・北牟婁郡・南牟婁郡!I14,2)))","v":1},{"$f":"熊野市・北牟婁郡・南牟婁郡!J14","v":850},{"$f":"熊野市・北牟婁郡・南牟婁郡!K14","v":0},{"$f":"VALUE(TRIM(LEFT(熊野市・北牟婁郡・南牟婁郡!M14,2)))","v":0},{"$f":"熊野市・北牟婁郡・南牟婁郡!N14","v":0},{"$f":"熊野市・北牟婁郡・南牟婁郡!O14","v":0},{"$f":"VALUE(TRIM(LEFT(熊野市・北牟婁郡・南牟婁郡!Q14,2)))","v":1},{"$f":"熊野市・北牟婁郡・南牟婁郡!R14","v":1050},{"$f":"熊野市・北牟婁郡・南牟婁郡!S14","v":0},{"$f":"VALUE(TRIM(LEFT(熊野市・北牟婁郡・南牟婁郡!U14,2)))","v":0},{"$f":"熊野市・北牟婁郡・南牟婁郡!V14","v":0},{"$f":"熊野市・北牟婁郡・南牟婁郡!W14","v":0},5,5350,0]
["北牟婁郡",{"$f":"VALUE(TRIM(LEFT(熊野市・北牟婁郡・南牟婁郡!E30,2)))","v":5},{"$f":"熊野市・北牟婁郡・南牟婁郡!F30","v":4500},{"$f":"熊野市・北牟婁郡・南牟婁郡!G30","v":0},{"$f":"VALUE(TRIM(LEFT(熊野市・北牟婁郡・南牟婁郡!I30,2)))","v":0},{"$f":"熊野市・北牟婁郡・南牟婁郡!J30","v":0},{"$f":"熊野市・北牟婁郡・南牟婁郡!K30","v":0},{"$f":"VALUE(TRIM(LEFT(熊野市・北牟婁郡・南牟婁郡!M30,2)))","v":0},{"$f":"熊野市・北牟婁郡・南牟婁郡!N30","v":0},{"$f":"熊野市・北牟婁郡・南牟婁郡!O30","v":0},{"$f":"VALUE(TRIM(LEFT(熊野市・北牟婁郡・南牟婁郡!Q30,2)))","v":2},{"$f":"熊野市・北牟婁郡・南牟婁郡!R30","v":550},{"$f":"熊野市・北牟婁郡・南牟婁郡!S30","v":0},{"$f":"VALUE(TRIM(LEFT(熊野市・北牟婁郡・南牟婁郡!U30,2)))","v":0},{"$f":"熊野市・北牟婁郡・南牟婁郡!V30","v":0},{"$f":"熊野市・北牟婁郡・南牟婁郡!W30","v":0},7,5050,0]
["南牟婁郡",{"$f":"VALUE(TRIM(LEFT(熊野市・北牟婁郡・南牟婁郡!E48,2)))","v":2},{"$f":"熊野市・北牟婁郡・南牟婁郡!F48","v":100},{"$f":"熊野市・北牟婁郡・南牟婁郡!G48","v":0},{"$f":"VALUE(TRIM(LEFT(熊野市・北牟婁郡・南牟婁郡!I48,2)))","v":0},{"$f":"熊野市・北牟婁郡・南牟婁郡!J48","v":0},{"$f":"熊野市・北牟婁郡・南牟婁郡!K48","v":0},{"$f":"VALUE(TRIM(LEFT(熊野市・北牟婁郡・南牟婁郡!M48,2)))","v":4},{"$f":"熊野市・北牟婁郡・南牟婁郡!N48","v":2700},{"$f":"熊野市・北牟婁郡・南牟婁郡!O48","v":0},{"$f":"VALUE(TRIM(LEFT(熊野市・北牟婁郡・南牟婁郡!Q48,2)))","v":1},{"$f":"熊野市・北牟婁郡・南牟婁郡!R48","v":1550},{"$f":"熊野市・北牟婁郡・南牟婁郡!S48","v":0},{"$f":"VALUE(TRIM(LEFT(熊野市・北牟婁郡・南牟婁郡!U48,2)))","v":0},{"$f":"熊野市・北牟婁郡・南牟婁郡!V48","v":0},{"$f":"熊野市・北牟婁郡・南牟婁郡!W48","v":0},7,4350,0]
["伊賀市",{"$f":"VALUE(TRIM(LEFT(伊賀市・名張市・新宮市!E22,2)))","v":4},{"$f":"伊賀市・名張市・新宮市!F22","v":3150},{"$f":"伊賀市・名張市・新宮市!G22","v":0},{"$f":"VALUE(TRIM(LEFT(伊賀市・名張市・新宮市!I22,2)))","v":8},{"$f":"伊賀市・名張市・新宮市!J22","v":8200},{"$f":"伊賀市・名張市・新宮市!K22","v":0},{"$f":"VALUE(TRIM(LEFT(伊賀市・名張市・新宮市!M22,2)))","v":1},{"$f":"伊賀市・名張市・新宮市!N22","v":1050},{"$f":"伊賀市・名張市・新宮市!O22","v":0},{"$f":"VALUE(TRIM(LEFT(伊賀市・名張市・新宮市!Q22,2)))","v":2},{"$f":"伊賀市・名張市・新宮市!R22","v":4200},{"$f":"伊賀市・名張市・新宮市!S22","v":0},{"$f":"VALUE(TRIM(LEFT(伊賀市・名張市・新宮市!U22,2)))","v":9},{"$f":"伊賀市・名張市・新宮市!V22","v":650},{"$f":"伊賀市・名張市・新宮市!W22","v":0},24,17250,0]
["名張市",{"$f":"VALUE(TRIM(LEFT(伊賀市・名張市・新宮市!E38,2)))","v":3},{"$f":"伊賀市・名張市・新宮市!F38","v":1700},{"$f":"伊賀市・名張市・新宮市!G38","v":0},{"$f":"VALUE(TRIM(LEFT(伊賀市・名張市・新宮市!I38,2)))","v":2},{"$f":"伊賀市・名張市・新宮市!J38","v":6200},{"$f":"伊賀市・名張市・新宮市!K38","v":0},{"$f":"VALUE(TRIM(LEFT(伊賀市・名張市・新宮市!M38,2)))","v":2},{"$f":"伊賀市・名張市・新宮市!N38","v":2000},{"$f":"伊賀市・名張市・新宮市!O38","v":0},{"$f":"VALUE(TRIM(LEFT(伊賀市・名張市・新宮市!Q38,2)))","v":1},{"$f":"伊賀市・名張市・新宮市!R38","v":5350},{"$f":"伊賀市・名張市・新宮市!S38","v":0},{"$f":"VALUE(TRIM(LEFT(伊賀市・名張市・新宮市!U38,2)))","v":2},{"$f":"伊賀市・名張市・新宮市!V38","v":450},{"$f":"伊賀市・名張市・新宮市!W38","v":0},10,15700,0]
["新宮市",{"$f":"VALUE(TRIM(LEFT(伊賀市・名張市・新宮市!E48,2)))","v":1},{"$f":"伊賀市・名張市・新宮市!F48","v":350},{"$f":"伊賀市・名張市・新宮市!G48","v":0},{"$f":"VALUE(TRIM(LEFT(伊賀市・名張市・新宮市!I48,2)))","v":0},{"$f":"伊賀市・名張市・新宮市!J48","v":0},{"$f":"伊賀市・名張市・新宮市!K48","v":0},{"$f":"VALUE(TRIM(LEFT(伊賀市・名張市・新宮市!M48,2)))","v":2},{"$f":"伊賀市・名張市・新宮市!N48","v":2050},{"$f":"伊賀市・名張市・新宮市!O48","v":0},{"$f":"VALUE(TRIM(LEFT(伊賀市・名張市・新宮市!Q48,2)))","v":2},{"$f":"伊賀市・名張市・新宮市!R48","v":1700},{"$f":"伊賀市・名張市・新宮市!S48","v":0},{"$f":"VALUE(TRIM(LEFT(伊賀市・名張市・新宮市!U48,2)))","v":2},{"$f":"伊賀市・名張市・新宮市!V48","v":300},{"$f":"伊賀市・名張市・新宮市!W48","v":0},{"$f":"SUM(B26,E26,H26,K26,N26)","v":7},4400,0]
["合計",{"$f":"SUM(B5:B26)","v":163},{"$f":"SUM(C5:C26)","v":243200},{"$f":"SUM(D5:D26)","v":0},49,75300,{"$f":"SUM(G5:G26)","v":0},30,32200,{"$f":"SUM(J5:J26)","v":0},66,{"$f":"SUM(L5:L26)","v":50050},0,14,2350,0,322,403100,0]
[null,null,null,null,null,null,null,null,null,null,null,null,null,null,null,null,null,null,null,null,"㈱中日総合サービス"]

{"sheet":"地図","index":6,"n_rows":0,"n_cols":0,"rows_kept":0,"cut":false,"hidden":false,"merged":[]}

{"sheet":"桑名市・桑名郡","index":7,"n_rows":49,"n_cols":24,"rows_kept":49,"cut":false,"hidden":false,"merged":[[0,1,1,4],[3,3,3,5],[2,9,2,10],[3,0,3,1],[1,5,1,6],[27,15,27,17],[27,19,27,21],[3,15,3,17],[3,19,3,21],[27,0,27,1],[27,3,27,5],[27,7,27,9],[27,11,27,13],[1,17,1,20],[0,5,0,6],[3,11,3,13],[0,22,1,23],[3,7,3,9],[0,17,0,20],[0,8,0,14],[1,8,1,14]]}
["折込日",null,null,null,null,"広告主",null,null,null,null,null,null,null,null,null,null,"サイズ",null,null,null,null,"取次店"]
[null,null,null,null,null,"チラシ銘柄",null,null,null,null,null,null,null,null,null,null,"部数",{"$f":"A6+A30","v":0}]
[]
["地区",null,null,"中日新聞",null,null,"枚数","朝日新聞",null,null,"枚数","毎日新聞",null,null,"枚数","読売新聞",null,null,"枚数","その他",null,null,"枚数","備考"]
["桑名市",null,null,240120101010,"桑名東部NS",2350,null,240120202020,"桑名MI",4200,null,null,null,"",null,240120405003,"桑名南部",1000]
[{"$f":"SUM(G26,K26,O26,S26,W26)","v":0},{"$f":"SUM(F26,J26,N26,R26,V26)","v":32150},null,240120101020,"桑名南部NS",3150,null,240120202030,"桑名西部MI",1400,null,null,null,"",null,240120405004,"桑名西部",1150]
[null,null,null,240120101090,"桑名中央NS",1700,null,240120202040,"大山田M",1100,null,null,null,"",null,null,null,""]
[null,null,null,240120101040,"桑名正和N",850,null,240120202050,"東員M",2250,null,null,null,"",null,null,null,""]
[null,null,null,240120101080,"桑名久米NS",1000,null,null,null,"",null,null,null,"",null,null,null,""]
[null,null,null,240120101060,"大山田団地NSI",3400,null,null,null,"",null,null,null,"",null,null,null,""]
[null,null,null,240120101110,"蓮花寺NSI",2900,null,null,null,"",null,null,null,"",null,null,null,""]
[null,null,null,240120101070,"深谷NAMYSI",850,null,null,null,"",null,null,null,"",null,null,null,""]
[null,null,null,240120101120,"多度NAMYSI",2050,null,null,null,"",null,null,null,"",null,null,null,""]
[null,null,null,240120101140,"桑名長島NAMSI",2800,null,null,null,"",null,null,null,"",null,null,null,""]
[null,null,null,null,null,"",null,null,null,"",null,null,null,"",null,null,null,""]
[null,null,null,null,null,"",null,null,null,"",null,null,null,"",null,null,null,""]
[null,null,null,null,null,"",null,null,null,"",null,null,null,"",null,null,null,""]
[null,null,null,null,null,"",null,null,null,"",null,null,null,"",null,null,null,""]
[null,null,null,null,null,"",null,null,null,"",null,null,null,"",null,null,null,""]
[null,null,null,null,null,"",null,null,null,"",null,null,null,"",null,null,null,""]
[null,null,null,null,null,"",null,null,null,"",null,null,null,"",null,null,null,""]
[null,null,null,null,null,"",null,null,null,"",null,null,null,"",null,null,null,""]
[null,null,null,null,null,"",null,null,null,"",null,null,null,"",null,null,null,""]
[null,null,null,null,null,"",null,null,null,"",null,null,null,"",null,null,null,""]
[null,null,null,null,null,"",null,null,null,"",null,null,null,"",null,null,null,""]
[null,null,null,null,{"$f":"CONCATENATE(FIXED(COUNTA(E5:E25),0,0),\"　店\")","v":"10　店"},{"$f":"SUM(F5:F25)","v":21050},{"$f":"SUM(G5:G25)","v":0},null,{"$f":"CONCATENATE(FIXED(COUNTA(I5:I25),0,0),\"　店\")","v":"4　店"},{"$f":"SUM(J5:J25)","v":8950},{"$f":"SUM(K5:K25)","v":0},null,{"$f":"CONCATENATE(FIXED(COUNTA(M5:M25),0,0),\"　店\")","v":"0　店"},{"$f":"SUM(N5:N25)","v":0},{"$f":"SUM(O5:O25)","v":0},null,{"$f":"CONCATENATE(FIXED(COUNTA(Q5:Q25),0,0),\"　店\")","v":"2　店"},{"$f":"SUM(R5:R25)","v":2150},{"$f":"SUM(S5:S25)","v":0},null,{"$f":"CONCATENATE(FIXED(COUNTA(U5:U25),0,0),\"　店\")","v":"0　店"},{"$f":"SUM(V5:V25)","v":0},{"$f":"SUM(W5:W25)","v":0},{"$f":"SUM(X5:X25)","v":0}]
[]
["地区",null,null,"中日新聞",null,null,"枚数","朝日新聞",null,null,"枚数","毎日新聞",null,null,"枚数","読売新聞",null,null,"枚数","その他",null,null,"枚数","備考"]
["桑名郡",null,"※",null,"木曽岬NＡＭSI","",null,null,null,"",null,null,null,"",null,null,null,"",null,null,null,null,null,"※尾張弥富市欄"]
[{"$f":"SUM(G48,K48,O48,S48,W48)","v":0},{"$f":"SUM(F48,J48,N48,R48,V48)","v":0},null,null,null,"",null,null,null,"",null,null,null,"",null,null,null,""]
[null,null,null,null,null,"",null,null,null,"",null,null,null,"",null,null,null,""]
[null,null,null,null,null,"",null,null,null,"",null,null,null,"",null,null,null,""]
[null,null,null,null,null,"",null,null,null,"",null,null,null,"",null,null,null,""]
[null,null,null,null,null,"",null,null,null,"",null,null,null,"",null,null,null,""]
[null,null,null,null,null,"",null,null,null,"",null,null,null,"",null,null,null,""]
[null,null,null,null,null,"",null,null,null,"",null,null,null,"",null,null,null,""]
[null,null,null,null,null,"",null,null,null,"",null,null,null,"",null,null,null,""]
[null,null,null,null,null,"",null,null,null,"",null,null,null,"",null,null,null,""]
[null,null,null,null,null,"",null,null,null,"",null,null,null,"",null,null,null,""]
[null,null,null,null,null,"",null,null,null,"",null,null,null,"",null,null,null,""]
[null,null,null,null,null,"",null,null,null,"",null,null,null,"",null,null,null,""]
[null,null,null,null,null,"",null,null,null,"",null,null,null,"",null,null,null,""]
[null,null,null,null,null,"",null,null,null,"",null,null,null,"",null,null,null,""]
[null,null,null,null,null,"",null,null,null,"",null,null,null,"",null,null,null,""]
[null,null,null,null,null,"",null,null,null,"",null,null,null,"",null,null,null,""]
[null,null,null,null,null,"",null,null,null,"",null,null,null,"",null,null,null,""]
[null,null,null,null,null,"",null,null,null,"",null,null,null,"",null,null,null,""]
[null,null,null,null,{"$f":"CONCATENATE(FIXED(COUNTA(E29:E47),0,0),\"　店\")","v":"1　店"},{"$f":"SUM(F29:F47)","v":0},{"$f":"SUM(G29:G47)","v":0},null,{"$f":"CONCATENATE(FIXED(COUNTA(I29:I47),0,0),\"　店\")","v":"0　店"},{"$f":"SUM(J29:J47)","v":0},{"$f":"SUM(K29:K47)","v":0},null,{"$f":"CONCATENATE(FIXED(COUNTA(M29:M47),0,0),\"　店\")","v":"0　店"},{"$f":"SUM(N29:N47)","v":0},{"$f":"SUM(O29:O47)","v":0},null,{"$f":"CONCATENATE(FIXED(COUNTA(Q29:Q47),0,0),\"　店\")","v":"0　店"},{"$f":"SUM(R29:R47)","v":0},{"$f":"SUM(S29:S47)","v":0},null,{"$f":"CONCATENATE(FIXED(COUNTA(U29:U47),0,0),\"　店\")","v":"0　店"},{"$f":"SUM(V29:V47)","v":0},{"$f":"SUM(W29:W47)","v":0},{"$f":"SUM(X29:X47)","v":0}]
["2026年前期（3月1日以降）",null,null,null,null,null,null,null,null,null,null,null,null,null,null,null,null,null,null,null,null,null,null,"㈱中日総合サービス"]

{"sheet":"いなべ市・員弁郡","index":8,"n_rows":49,"n_cols":24,"rows_kept":49,"cut":false,"hidden":false,"merged":[[3,15,3,17],[3,19,3,21],[27,0,27,1],[27,3,27,5],[27,7,27,9],[27,11,27,13],[27,15,27,17],[27,19,27,21],[2,9,2,10],[3,0,3,1],[3,3,3,5],[3,7,3,9],[3,11,3,13],[0,1,1,4],[0,17,0,20],[0,22,1,23],[1,17,1,20],[0,5,0,6],[0,8,0,14],[1,5,1,6],[1,8,1,14]]}
["折込日",null,null,null,null,"広告主",null,null,null,null,null,null,null,null,null,null,"サイズ",null,null,null,null,"取次店"]
[null,null,null,null,null,"チラシ銘柄",null,null,null,null,null,null,null,null,null,null,"部数",{"$f":"A6+A30","v":0}]
[]
["地区",null,null,"中日新聞",null,null,"枚数","朝日新聞",null,null,"枚数","毎日新聞",null,null,"枚数","読売新聞",null,null,"枚数","その他",null,null,"枚数","備考"]
["いなべ市",null,null,240140101060,"梅戸井NAMSI",800,null,null,null,"",null,null,null,"",null,240140405002,"いなべ",400]
[{"$f":"SUM(G26,K26,O26,S26,W26)","v":0},{"$f":"SUM(F26,J26,N26,R26,V26)","v":8050},null,240140101070,"石榑NAMI",1000,null,null,null,"",null,null,null,"",null,240140405001,"北勢町",150]
[null,null,null,240140101030,"員弁NAMSI",1450,null,null,null,"",null,null,null,"",null,null,null,""]
[null,null,null,240140101040,"阿下喜NAMSI",1650,null,null,null,"",null,null,null,"",null,null,null,""]
[null,null,null,240140101050,"員弁治田NAMSI",1150,null,null,null,"",null,null,null,"",null,null,null,""]
[null,null,null,240140101080,"藤原NAMYSI",1450,null,null,null,"",null,null,null,"",null,null,null,""]
[null,null,null,null,null,"",null,null,null,"",null,null,null,"",null,null,null,""]
[null,null,null,null,null,"",null,null,null,"",null,null,null,"",null,null,null,""]
[null,null,null,null,null,"",null,null,null,"",null,null,null,"",null,null,null,""]
[null,null,null,null,null,"",null,null,null,"",null,null,null,"",null,null,null,""]
[null,null,null,null,null,"",null,null,null,"",null,null,null,"",null,null,null,""]
[null,null,null,null,null,"",null,null,null,"",null,null,null,"",null,null,null,""]
[null,null,null,null,null,"",null,null,null,"",null,null,null,"",null,null,null,""]
[null,null,null,null,null,"",null,null,null,"",null,null,null,"",null,null,null,""]
[null,null,null,null,null,"",null,null,null,"",null,null,null,"",null,null,null,""]
[null,null,null,null,null,"",null,null,null,"",null,null,null,"",null,null,null,""]
[null,null,null,null,null,"",null,null,null,"",null,null,null,"",null,null,null,""]
[null,null,null,null,null,"",null,null,null,"",null,null,null,"",null,null,null,""]
[null,null,null,null,null,"",null,null,null,"",null,null,null,"",null,null,null,""]
[null,null,null,null,null,"",null,null,null,"",null,null,null,"",null,null,null,""]
[null,null,null,null,null,"",null,null,null,"",null,null,null,"",null,null,null,""]
[null,null,null,null,{"$f":"CONCATENATE(FIXED(COUNTA(E5:E25),0,0),\"　店\")","v":"6　店"},{"$f":"SUM(F5:F25)","v":7500},{"$f":"SUM(G5:G25)","v":0},null,{"$f":"CONCATENATE(FIXED(COUNTA(I5:I25),0,0),\"　店\")","v":"0　店"},{"$f":"SUM(J5:J25)","v":0},{"$f":"SUM(K5:K25)","v":0},null,{"$f":"CONCATENATE(FIXED(COUNTA(M5:M25),0,0),\"　店\")","v":"0　店"},{"$f":"SUM(N5:N25)","v":0},{"$f":"SUM(O5:O25)","v":0},null,{"$f":"CONCATENATE(FIXED(COUNTA(Q5:Q25),0,0),\"　店\")","v":"2　店"},{"$f":"SUM(R5:R25)","v":550},{"$f":"SUM(S5:S25)","v":0},null,{"$f":"CONCATENATE(FIXED(COUNTA(U5:U25),0,0),\"　店\")","v":"0　店"},{"$f":"SUM(V5:V25)","v":0},{"$f":"SUM(W5:W25)","v":0},{"$f":"SUM(X5:X25)","v":0}]
[]
["地区",null,null,"中日新聞",null,null,"枚数","朝日新聞",null,null,"枚数","毎日新聞",null,null,"枚数","読売新聞",null,null,"枚数","その他",null,null,"枚数","備考"]
["員弁郡",null,null,240121101020,"西桑名ネオポリスNSI",3200,null,null,null,"",null,null,null,"",null,240121405010,"東員町",350,null,null,null,null,null,"員弁郡全域の場合"]
[{"$f":"SUM(G48,K48,O48,S48,W48)","v":0},{"$f":"SUM(F48,J48,N48,R48,V48)","v":3550},null,null,null,"",null,null,null,"",null,null,null,"",null,null,null,"",null,null,null,null,null,"四日市市四日市保々"]
[null,null,null,null,null,"",null,null,null,"",null,null,null,"",null,null,null,"",null,null,null,null,null,"500枚をプラス"]
[null,null,null,null,null,"",null,null,null,"",null,null,null,"",null,null,null,""]
[{"$f":"SUM(F41,J41,N41,R41,V41)","v":0},{"$f":"SUM(G41,K41,O41,S41,W41)","v":0},null,null,null,"",null,null,null,"",null,null,null,"",null,null,null,""]
[null,null,null,null,null,"",null,null,null,"",null,null,null,"",null,null,null,""]
[null,null,null,null,null,"",null,null,null,"",null,null,null,"",null,null,null,""]
[null,null,null,null,null,"",null,null,null,"",null,null,null,"",null,null,null,""]
[null,null,null,null,null,"",null,null,null,"",null,null,null,"",null,null,null,""]
[null,null,null,null,null,"",null,null,null,"",null,null,null,"",null,null,null,""]
[null,null,null,null,null,"",null,null,null,"",null,null,null,"",null,null,null,""]
[null,null,null,null,null,"",null,null,null,"",null,null,null,"",null,null,null,""]
[null,null,null,null,null,"",null,null,null,"",null,null,null,"",null,null,null,""]
[null,null,null,null,null,"",null,null,null,"",null,null,null,"",null,null,null,""]
[null,null,null,null,null,"",null,null,null,"",null,null,null,"",null,null,null,""]
[null,null,null,null,null,"",null,null,null,"",null,null,null,"",null,null,null,""]
[null,null,null,null,null,"",null,null,null,"",null,null,null,"",null,null,null,""]
[null,null,null,null,null,"",null,null,null,"",null,null,null,"",null,null,null,""]
[null,null,null,null,null,"",null,null,null,"",null,null,null,"",null,null,null,""]
[null,null,null,null,{"$f":"CONCATENATE(FIXED(COUNTA(E29:E47),0,0),\"　店\")","v":"1　店"},{"$f":"SUM(F29:F47)","v":3200},{"$f":"SUM(G29:G47)","v":0},null,{"$f":"CONCATENATE(FIXED(COUNTA(I29:I47),0,0),\"　店\")","v":"0　店"},{"$f":"SUM(J29:J47)","v":0},{"$f":"SUM(K29:K47)","v":0},null,{"$f":"CONCATENATE(FIXED(COUNTA(M29:M47),0,0),\"　店\")","v":"0　店"},{"$f":"SUM(N29:N47)","v":0},{"$f":"SUM(O29:O47)","v":0},null,{"$f":"CONCATENATE(FIXED(COUNTA(Q29:Q47),0,0),\"　店\")","v":"1　店"},{"$f":"SUM(R29:R47)","v":350},{"$f":"SUM(S29:S47)","v":0},null,{"$f":"CONCATENATE(FIXED(COUNTA(U29:U47),0,0),\"　店\")","v":"0　店"},{"$f":"SUM(V29:V47)","v":0},{"$f":"SUM(W29:W47)","v":0},{"$f":"SUM(X29:X47)","v":0}]
["2026年前期（3月1日以降）",null,null,null,null,null,null,null,null,null,null,null,null,null,null,null,null,null,null,null,null,null,null,"㈱中日総合サービス"]

{"sheet":"四日市市","index":9,"n_rows":49,"n_cols":24,"rows_kept":49,"cut":false,"hidden":false,"merged":[[3,19,3,21],[2,9,2,10],[3,0,3,1],[3,3,3,5],[3,7,3,9],[3,11,3,13],[3,15,3,17],[0,1,1,4],[0,17,0,20],[0,22,1,23],[1,17,1,20],[0,5,0,6],[0,8,0,14],[1,5,1,6],[1,8,1,14]]}
["折込日",null,null,null,null,"広告主",null,null,null,null,null,null,null,null,null,null,"サイズ",null,null,null,null,"取次店"]
[null,null,null,null,null,"チラシ銘柄",null,null,null,null,null,null,null,null,null,null,"部数",{"$f":"A6","v":0}]
[]
["地区",null,null,"中日新聞",null,null,"枚数","朝日新聞",null,null,"枚数","毎日新聞",null,null,"枚数","読売新聞",null,null,"枚数","その他",null,null,"枚数","備考"]
["四日市市",null,null,240110101260,"四日市あかつきNM",3200,null,240110202010,"山城MI",1200,null,240110303010,"四日市北部A",2000,null,240110405010,"四日市",150,null,null,null,null,null,"四日市市全域の場合"]
[{"$f":"SUM(G48,K48,O48,S48,W48)","v":0},{"$f":"SUM(F48,J48,N48,R48,V48)","v":66600},"*1",240110101010,"富田（生川）NS",3650,null,240110202030,"阿倉川N",450,null,240110303090,"四日市南部A",4200,null,240110405020,"四日市常磐",650,null,null,null,null,null,"鈴鹿市加佐登150枚"]
[null,null,null,240110101240,"四日市羽津NS",2350,null,240110202035,"富洲原NI",600,null,240110303130,"四日市笹川",700,null,240110405030,"四日市水沢",150,null,null,null,null,null,"をプラス"]
[null,null,null,240110101340,"四日市あがたNMI",1350,null,240110202040,"四日市販売NI",3550,null,240110303170,"四日市采女",500,null,240110405008,"四日市笹川",450]
[null,null,"*2",240110101040,"四日市保々NMSI",2550,null,240110202050,"四日市桜I",800,null,null,null,"",null,240110405002,"四日市南部乙",600,null,null,null,null,null,"*1富洲原地区"]
[null,null,null,240110101280,"四日市橋北NSI",1800,null,240110202051,"生桑NM",1500,null,null,null,"",null,240110405003,"四日市橋北",300,null,null,null,null,null,"（一部川越南）"]
[null,null,null,240110101290,"阿倉川NSI",1850,null,240110202080,"日野M",1000,null,null,null,"",null,240110405004,"四日市北部",900]
[null,null,null,240110101230,"四日市生桑NSI",1750,null,240110202090,"日永I",950,null,null,null,"",null,240110405005,"四日市西部",450,null,null,null,null,null,"*2員弁郡東員町"]
[null,null,null,240110101060,"三重平NSI",1200,null,240110202110,"四日市駅前N",750,null,null,null,"",null,240110405006,"四日市羽津",600,null,null,null,null,null,"　500枚含む"]
[null,null,null,240110101090,"四日市中央NSI",2650,null,240110202120,"高花平I",100,null,null,null,"",null,240110405007,"塩浜",150]
[null,null,null,240110101080,"四日市常磐NS",2800,null,240110202130,"四日市南NM",1800,null,null,null,"",null,240110405009,"楠",350]
[null,null,null,240110101160,"四日市南部NS",2000,null,null,null,"",null,null,null,"",null,null,null,""]
[null,null,null,240110101120,"塩浜NI",1700,null,null,null,"",null,null,null,"",null,null,null,""]
[null,null,null,240110101180,"四日市笹川NS",1800,null,null,null,"",null,null,null,"",null,null,null,""]
[null,null,null,240110101270,"四日市波木NS",1200,null,null,null,"",null,null,null,"",null,null,null,""]
[null,null,null,240110101140,"四日市内部NSI",1750,null,null,null,"",null,null,null,"",null,null,null,""]
[null,null,null,240110101170,"四日市西部NAMSI",1950,null,null,null,"",null,null,null,"",null,null,null,""]
[null,null,null,240110101220,"四日市川島NMSI",2700,null,null,null,"",null,null,null,"",null,null,null,""]
[null,null,null,240110101190,"四日市桜NMI",1950,null,null,null,"",null,null,null,"",null,null,null,""]
[null,null,null,240110101320,"三重楠",1550,null,null,null,"",null,null,null,"",null,null,null,""]
[null,null,null,null,null,"",null,null,null,"",null,null,null,"",null,null,null,""]
[null,null,null,null,null,"",null,null,null,"",null,null,null,"",null,null,null,""]
[null,null,null,null,null,"",null,null,null,"",null,null,null,"",null,null,null,""]
[null,null,null,null,null,"",null,null,null,"",null,null,null,"",null,null,null,""]
[null,null,null,null,null,"",null,null,null,"",null,null,null,"",null,null,null,""]
[null,null,null,null,null,"",null,null,null,"",null,null,null,"",null,null,null,""]
[null,null,null,null,null,"",null,null,null,"",null,null,null,"",null,null,null,""]
[null,null,null,null,null,"",null,null,null,"",null,null,null,"",null,null,null,""]
[null,null,null,null,null,"",null,null,null,"",null,null,null,"",null,null,null,""]
[null,null,null,null,null,"",null,null,null,"",null,null,null,"",null,null,null,""]
[null,null,null,null,null,"",null,null,null,"",null,null,null,"",null,null,null,""]
[null,null,null,null,null,"",null,null,null,"",null,null,null,"",null,null,null,""]
[null,null,null,null,null,"",null,null,null,"",null,null,null,"",null,null,null,""]
[null,null,null,null,null,"",null,null,null,"",null,null,null,"",null,null,null,""]
[null,null,null,null,null,"",null,null,null,"",null,null,null,"",null,null,null,""]
[null,null,null,null,null,"",null,null,null,"",null,null,null,"",null,null,null,""]
[null,null,null,null,null,"",null,null,null,"",null,null,null,"",null,null,null,""]
[null,null,null,null,null,"",null,null,null,"",null,null,null,"",null,null,null,""]
[null,null,null,null,null,"",null,null,null,"",null,null,null,"",null,null,null,""]
[null,null,null,null,null,"",null,null,null,"",null,null,null,"",null,null,null,""]
[null,null,null,null,null,"",null,null,null,"",null,null,null,"",null,null,null,""]
[null,null,null,null,null,"",null,null,null,"",null,null,null,"",null,null,null,""]
[null,null,null,null,null,"",null,null,null,"",null,null,null,"",null,null,null,""]
[null,null,null,null,{"$f":"CONCATENATE(FIXED(COUNTA(E5:E47),0,0),\"　店\")","v":"20　店"},{"$f":"SUM(F5:F47)","v":41750},{"$f":"SUM(G5:G47)","v":0},null,{"$f":"CONCATENATE(FIXED(COUNTA(I5:I47),0,0),\"　店\")","v":"11　店"},{"$f":"SUM(J5:J47)","v":12700},{"$f":"SUM(K5:K47)","v":0},null,{"$f":"CONCATENATE(FIXED(COUNTA(M5:M47),0,0),\"　店\")","v":"4　店"},{"$f":"SUM(N5:N47)","v":7400},{"$f":"SUM(O5:O47)","v":0},null,{"$f":"CONCATENATE(FIXED(COUNTA(Q5:Q47),0,0),\"　店\")","v":"11　店"},{"$f":"SUM(R5:R47)","v":4750},{"$f":"SUM(S5:S47)","v":0},null,{"$f":"CONCATENATE(FIXED(COUNTA(U5:U47),0,0),\"　店\")","v":"0　店"},{"$f":"SUM(V5:V47)","v":0},{"$f":"SUM(W5:W47)","v":0},{"$f":"SUM(X5:X47)","v":0}]
["2026年前期（3月1日以降）",null,null,null,null,null,null,null,null,null,null,null,null,null,null,null,null,null,null,null,null,null,null,"㈱中日総合サービス"]

{"sheet":"三重郡・亀山市・鈴鹿市","index":10,"n_rows":49,"n_cols":24,"rows_kept":49,"cut":false,"hidden":false,"merged":[[15,3,15,5],[15,7,15,9],[28,0,28,1],[28,3,28,5],[28,7,28,9],[15,0,15,1],[28,15,28,17],[28,19,28,21],[3,7,3,9],[0,22,1,23],[1,17,1,20],[0,8,0,14],[1,8,1,14],[3,15,3,17],[28,11,28,13],[15,11,15,13],[15,15,15,17],[15,19,15,21],[0,1,1,4],[0,17,0,20],[2,9,2,10],[3,0,3,1],[3,3,3,5],[0,5,0,6],[1,5,1,6],[3,19,3,21],[3,11,3,13]]}
["折込日",null,null,null,null,"広告主",null,null,null,null,null,null,null,null,null,null,"サイズ",null,null,null,null,"取次店"]
[null,null,null,null,null,"チラシ銘柄",null,null,null,null,null,null,null,null,null,null,"部数",{"$f":"A6+A18+A31","v":0}]
[]
["地区",null,null,"中日新聞",null,null,"枚数","朝日新聞",null,null,"枚数","毎日新聞",null,null,"枚数","読売新聞",null,null,"枚数","その他",null,null,"枚数","備考"]
["三重郡",null,null,240150101070,"伊勢朝日NM",1550,null,240150202040,"三重朝日I",600,null,null,null,"",null,240150405001,"菰野町",650]
[{"$f":"SUM(G14,K14,O14,S14,W14)","v":0},{"$f":"SUM(F14,J14,N14,R14,V14)","v":11500},null,240150101040,"菰野NAMI",3650,null,240150202020,"菰野東I",500,null,null,null,"",null,null,null,""]
[null,null,null,240150101030,"菰野朝上NAMSI",1400,null,null,null,"",null,null,null,"",null,null,null,""]
[null,null,null,240150101050,"鵜川原NM",1300,null,null,null,"",null,null,null,"",null,null,null,""]
[null,null,null,240150101090,"川越南NS",900,null,null,null,"",null,null,null,"",null,null,null,""]
[null,null,null,240150101080,"川越北NMS",950,null,null,null,"",null,null,null,"",null,null,null,""]
[null,null,null,null,null,"",null,null,null,"",null,null,null,"",null,null,null,""]
[null,null,null,null,null,"",null,null,null,"",null,null,null,"",null,null,null,""]
[null,null,null,null,null,"",null,null,null,"",null,null,null,"",null,null,null,""]
[null,null,null,null,{"$f":"CONCATENATE(FIXED(COUNTA(E5:E13),0,0),\"　店\")","v":"6　店"},{"$f":"SUM(F5:F13)","v":9750},{"$f":"SUM(G5:G13)","v":0},null,{"$f":"CONCATENATE(FIXED(COUNTA(I5:I13),0,0),\"　店\")","v":"2　店"},{"$f":"SUM(J5:J13)","v":1100},{"$f":"SUM(K5:K13)","v":0},null,{"$f":"CONCATENATE(FIXED(COUNTA(M5:M13),0,0),\"　店\")","v":"0　店"},{"$f":"SUM(N5:N13)","v":0},{"$f":"SUM(O5:O13)","v":0},null,{"$f":"CONCATENATE(FIXED(COUNTA(Q5:Q13),0,0),\"　店\")","v":"1　店"},{"$f":"SUM(R5:R13)","v":650},{"$f":"SUM(S5:S13)","v":0},null,{"$f":"CONCATENATE(FIXED(COUNTA(U5:U13),0,0),\"　店\")","v":"0　店"},{"$f":"SUM(V5:V13)","v":0},{"$f":"SUM(W5:W13)","v":0},{"$f":"SUM(X5:X13)","v":0}]
[]
["地区",null,null,"中日新聞",null,null,"枚数","朝日新聞",null,null,"枚数","毎日新聞",null,null,"枚数","読売新聞",null,null,"枚数","その他",null,null,"枚数","備考"]
["亀山市",null,null,240205101010,"亀山中央NMSI",1600,null,240205202010,"亀山",850,null,null,null,"",null,240205405001,"亀山",800,null,null,null,null,null,"亀山市全域の場合"]
[{"$f":"SUM(G27,K27,O27,S27,W27)","v":0},{"$f":"SUM(F27,J27,N27,R27,V27)","v":10200},"*1",240205101070,"亀山南部NMSI",1550,null,240205202020,"井田川",1200,null,null,null,"",null,null,null,"",null,null,null,null,null,"津市椋本50枚"]
[null,null,null,240205101040,"亀山北部NAMSI",2350,null,null,null,"",null,null,null,"",null,null,null,"",null,null,null,null,null,"鈴鹿市鈴峰350枚"]
[null,null,"*2",240205101030,"下ノ庄NAMSI",600,null,null,null,"",null,null,null,"",null,null,null,"",null,null,null,null,null,"をプラス"]
[null,null,null,240205101060,"加太NAMSI",250,null,null,null,"",null,null,null,"",null,null,null,""]
[null,null,null,240205101080,"亀山関NAMSI",1000,null,null,null,"",null,null,null,"",null,null,null,"",null,null,null,null,null,"*1津市50枚含む"]
[null,null,null,null,null,"",null,null,null,"",null,null,null,"",null,null,null,""]
[null,null,null,null,null,"",null,null,null,"",null,null,null,"",null,null,null,"",null,null,null,null,null,"*2鈴鹿市300枚含む"]
[null,null,null,null,null,"",null,null,null,"",null,null,null,"",null,null,null,""]
[null,null,null,null,null,"",null,null,null,"",null,null,null,"",null,null,null,""]
[null,null,null,null,{"$f":"CONCATENATE(FIXED(COUNTA(E17:E26),0,0),\"　店\")","v":"6　店"},{"$f":"SUM(F17:F26)","v":7350},{"$f":"SUM(G17:G26)","v":0},null,{"$f":"CONCATENATE(FIXED(COUNTA(I17:I26),0,0),\"　店\")","v":"2　店"},{"$f":"SUM(J17:J26)","v":2050},{"$f":"SUM(K17:K26)","v":0},null,{"$f":"CONCATENATE(FIXED(COUNTA(M17:M26),0,0),\"　店\")","v":"0　店"},{"$f":"SUM(N17:N26)","v":0},{"$f":"SUM(O17:O26)","v":0},null,{"$f":"CONCATENATE(FIXED(COUNTA(Q17:Q26),0,0),\"　店\")","v":"1　店"},{"$f":"SUM(R17:R26)","v":800},{"$f":"SUM(S17:S26)","v":0},null,{"$f":"CONCATENATE(FIXED(COUNTA(U17:U26),0,0),\"　店\")","v":"0　店"},{"$f":"SUM(V17:V26)","v":0},{"$f":"SUM(W17:W26)","v":0},{"$f":"SUM(X17:X26)","v":0}]
[]
["地区",null,null,"中日新聞",null,null,"枚数","朝日新聞",null,null,"枚数","毎日新聞",null,null,"枚数","読売新聞",null,null,"枚数","その他",null,null,"枚数","備考"]
["鈴鹿市",null,null,240210101010,"長太の浦NMSI",1500,null,240210202010,"伊勢若松",1000,null,240210303010,"石薬師",300,null,240210405001,"鈴鹿南部",600,null,null,null,null,null,"鈴鹿市全域の場合"]
[{"$f":"SUM(G48,K48,O48,S48,W48)","v":0},{"$f":"SUM(F48,J48,N48,R48,V48)","v":42150},null,240210101030,"伊勢若松NMSI",1950,null,240210202020,"伊勢神戸",1500,null,240210303022,"鈴鹿国府",300,null,240210405002,"鈴鹿北部",550,null,null,null,null,null,"亀山市下ノ庄300枚"]
[null,null,null,240210101040,"白子NMSI",2750,null,240210202030,"平田",1450,null,240210303030,"白子",550,null,240210405003,"鈴鹿南部(磯山)",500,null,null,null,null,null,"をプラス"]
[null,null,null,240210101160,"鈴鹿旭が丘NMSI",1700,null,240210202040,"白子南",1550,null,240210303070,"平田",1950,null,240210405004,"鈴鹿平田",1000]
[null,null,null,240210101050,"鈴鹿磯山NMSI",1350,null,240210202050,"白子西I",3100,null,240210303080,"鈴鹿北部",200,null,null,null,""]
[null,null,null,240210101060,"鈴鹿栄NSI",1200,null,240210202080,"玉垣",1300,null,null,null,"",null,null,null,""]
[null,null,null,240210101070,"いせ神戸北部NMSI",2400,null,240210202070,"石薬師MI",700,null,null,null,"",null,null,null,""]
[null,null,null,240210101080,"いせ神戸南部NMSI",1600,null,null,null,"",null,null,null,"",null,null,null,""]
[null,null,null,240210101100,"鈴鹿桜島NMSI",2250,null,null,null,"",null,null,null,"",null,null,null,""]
[null,null,null,240210101110,"鈴鹿平田NSI",3850,null,null,null,"",null,null,null,"",null,null,null,""]
[null,null,"*1",240210101120,"加佐登N",1950,null,null,null,"",null,null,null,"",null,null,null,""]
[null,null,"*2",240210101130,"鈴峰NMSI",1950,null,null,null,"",null,null,null,"",null,null,null,"",null,null,null,null,null,"*1四日市市150枚含む"]
[null,null,null,240210101140,"鈴鹿国府NSI",1150,null,null,null,"",null,null,null,"",null,null,null,"",null,null,null,null,null,"*2亀山市350枚含む"]
[null,null,null,null,null,"",null,null,null,"",null,null,null,"",null,null,null,""]
[null,null,null,null,null,"",null,null,null,"",null,null,null,"",null,null,null,""]
[null,null,null,null,null,"",null,null,null,"",null,null,null,"",null,null,null,""]
[null,null,null,null,null,"",null,null,null,"",null,null,null,"",null,null,null,""]
[null,null,null,null,null,"",null,null,null,"",null,null,null,"",null,null,null,""]
[null,null,null,null,{"$f":"CONCATENATE(FIXED(COUNTA(E30:E47),0,0),\"　店\")","v":"13　店"},{"$f":"SUM(F30:F47)","v":25600},{"$f":"SUM(G30:G47)","v":0},null,{"$f":"CONCATENATE(FIXED(COUNTA(I30:I47),0,0),\"　店\")","v":"7　店"},{"$f":"SUM(J30:J47)","v":10600},{"$f":"SUM(K30:K47)","v":0},null,{"$f":"CONCATENATE(FIXED(COUNTA(M30:M47),0,0),\"　店\")","v":"5　店"},{"$f":"SUM(N30:N47)","v":3300},{"$f":"SUM(O30:O47)","v":0},null,{"$f":"CONCATENATE(FIXED(COUNTA(Q30:Q47),0,0),\"　店\")","v":"4　店"},{"$f":"SUM(R30:R47)","v":2650},{"$f":"SUM(S30:S47)","v":0},null,{"$f":"CONCATENATE(FIXED(COUNTA(U30:U47),0,0),\"　店\")","v":"0　店"},{"$f":"SUM(V30:V47)","v":0},{"$f":"SUM(W30:W47)","v":0},{"$f":"SUM(X30:X47)","v":0}]
["2026年前期（3月1日以降）",null,null,null,null,null,null,null,null,null,null,null,null,null,null,null,null,null,null,null,null,null,null,"㈱中日総合サービス"]

{"sheet":"津市","index":11,"n_rows":49,"n_cols":24,"rows_kept":49,"cut":false,"hidden":false,"merged":[[3,19,3,21],[2,9,2,10],[3,0,3,1],[3,3,3,5],[3,7,3,9],[3,11,3,13],[3,15,3,17],[0,1,1,4],[0,17,0,20],[0,22,1,23],[1,17,1,20],[0,5,0,6],[0,8,0,14],[1,5,1,6],[1,8,1,14]]}
["折込日",null,null,null,null,"広告主",null,null,null,null,null,null,null,null,null,null,"サイズ",null,null,null,null,"取次店"]
[null,null,null,null,null,"チラシ銘柄",null,null,null,null,null,null,null,null,null,null,"部数",{"$f":"A6","v":0}]
[]
["地区",null,null,"中日新聞",null,null,"枚数","朝日新聞",null,null,"枚数","毎日新聞",null,null,"枚数","読売新聞",null,null,"枚数","その他",null,null,"枚数","備考"]
["津市",null,null,240220101010,"津白塚NAMSI",1950,null,240220202010,"津中央NI",4350,null,240220303030,"津",900,null,240220405001,"津駅前",900,null,"240220I09010",null,null,null,"津市全域の場合"]
[{"$f":"SUM(G48,K48,O48,S48,W48)","v":0},{"$f":"SUM(F48,J48,N48,R48,V48)","v":67050},null,240220101030,"津一身田NAMSI",3000,null,240220202050,"津駅西NI",3100,null,240220303040,"橋北",1250,null,240220405002,"津中央",500,null,"240220S07010",null,null,null,"亀山市亀山南部50枚"]
[null,null,null,240220101080,"津高野尾NAMSI",1300,null,240220202140,"津久居I",2200,null,240220303050,"橋南",1250,null,240220405003,"津新町",550,null,null,null,null,null,"をプラス"]
[null,null,null,240220101040,"津（大光堂）NSI",2850,null,null,null,"",null,240220303060,"久居",1450,null,240220405004,"豊里",400]
[null,null,null,240220101045,"津新町NSI",2000,null,null,null,"",null,null,null,"",null,240220405005,"津南部",1350]
[null,null,null,240220101310,"津橋北NMSI",1950,null,null,null,"",null,null,null,"",null,240220405006,"津半田",1100]
[null,null,null,240220101050,"津西が丘SI",1900,null,null,null,"",null,null,null,"",null,240220405007,"津・芸濃",550]
[null,null,null,240220101060,"津橋南NSI",3150,null,null,null,"",null,null,null,"",null,240220405008,"津・久居",900]
[null,null,null,240220101070,"津南が丘NSI",1250,null,null,null,"",null,null,null,"",null,240220405009,"榊原町",200]
[null,null,null,240220101100,"津安濃NAMSI",1750,null,null,null,"",null,null,null,"",null,240220405010,"一志",350]
[null,null,null,240220101290,"津片田東NAMSI",2050,null,null,null,"",null,null,null,"",null,240220405011,"白山",200]
[null,null,null,240220101300,"津片田西NAMSI",1400,null,null,null,"",null,null,null,"",null,null,null,""]
[null,null,null,240220101120,"津高茶屋NMS",2150,null,null,null,"",null,null,null,"",null,null,null,""]
[null,null,null,240220101130,"津雲出NAMSI",1600,null,null,null,"",null,null,null,"",null,null,null,""]
[null,null,null,240220101140,"久居東部NS",1650,null,null,null,"",null,null,null,"",null,null,null,""]
[null,null,null,240220101150,"久居NS",1050,null,null,null,"",null,null,null,"",null,null,null,""]
[null,null,null,240220101160,"久居西部NS",900,null,null,null,"",null,null,null,"",null,null,null,""]
[null,null,null,240220101170,"久居南部NS",1300,null,null,null,"",null,null,null,"",null,null,null,""]
[null,null,null,240220101180,"榊原NAMSI",400,null,null,null,"",null,null,null,"",null,null,null,""]
[null,null,null,240220101190,"千里ヶ丘NAMSI",1550,null,null,null,"",null,null,null,"",null,null,null,""]
[null,null,null,240220101200,"豊津上野NAMSI",2050,null,null,null,"",null,null,null,"",null,null,null,""]
[null,null,"*1",240220101210,"椋本NAMSI",1050,null,null,null,"",null,null,null,"",null,null,null,""]
[null,null,null,240220101220,"北神山NAMSI",600,null,null,null,"",null,null,null,"",null,null,null,"",null,null,null,null,null,"*1亀山市50枚含む"]
[null,null,null,240220101230,"津一志NAMSI",2600,null,null,null,"",null,null,null,"",null,null,null,""]
[null,null,null,240220101240,"白山NAMSI",2200,null,null,null,"",null,null,null,"",null,null,null,""]
[null,null,null,240220101250,"家城NAMI",450,null,null,null,"",null,null,null,"",null,null,null,""]
[null,null,null,240220101260,"伊勢竹原NAMYSI",300,null,null,null,"",null,null,null,"",null,null,null,""]
[null,null,null,240220101270,"八知NAMYSI",600,null,null,null,"",null,null,null,"",null,null,null,""]
[null,null,null,240220101280,"奥津NAMYSI",550,null,null,null,"",null,null,null,"",null,null,null,""]
[null,null,null,null,null,"",null,null,null,"",null,null,null,"",null,null,null,""]
[null,null,null,null,null,"",null,null,null,"",null,null,null,"",null,null,null,""]
[null,null,null,null,null,"",null,null,null,"",null,null,null,"",null,null,null,""]
[null,null,null,null,null,"",null,null,null,"",null,null,null,"",null,null,null,""]
[null,null,null,null,null,"",null,null,null,"",null,null,null,"",null,null,null,""]
[null,null,null,null,null,"",null,null,null,"",null,null,null,"",null,null,null,""]
[null,null,null,null,null,"",null,null,null,"",null,null,null,"",null,null,null,""]
[null,null,null,null,null,"",null,null,null,"",null,null,null,"",null,null,null,""]
[null,null,null,null,null,"",null,null,null,"",null,null,null,"",null,null,null,""]
[null,null,null,null,null,"",null,null,null,"",null,null,null,"",null,null,null,""]
[null,null,null,null,null,"",null,null,null,"",null,null,null,"",null,null,null,""]
[null,null,null,null,null,"",null,null,null,"",null,null,null,"",null,null,null,""]
[null,null,null,null,null,"",null,null,null,"",null,null,null,"",null,null,null,""]
[null,null,null,null,null,"",null,null,null,"",null,null,null,"",null,null,null,""]
[null,null,null,null,{"$f":"CONCATENATE(FIXED(COUNTA(E5:E47),0,0),\"　店\")","v":"29　店"},{"$f":"SUM(F5:F47)","v":45550},{"$f":"SUM(G5:G47)","v":0},null,{"$f":"CONCATENATE(FIXED(COUNTA(I5:I47),0,0),\"　店\")","v":"3　店"},{"$f":"SUM(J5:J47)","v":9650},{"$f":"SUM(K5:K47)","v":0},null,{"$f":"CONCATENATE(FIXED(COUNTA(M5:M47),0,0),\"　店\")","v":"4　店"},{"$f":"SUM(N5:N47)","v":4850},{"$f":"SUM(O5:O47)","v":0},null,{"$f":"CONCATENATE(FIXED(COUNTA(Q5:Q47),0,0),\"　店\")","v":"11　店"},{"$f":"SUM(R5:R47)","v":7000},{"$f":"SUM(S5:S47)","v":0},null,{"$f":"CONCATENATE(FIXED(COUNTA(U5:U47),0,0),\"　店\")","v":"0　店"},{"$f":"SUM(V5:V47)","v":0},{"$f":"SUM(W5:W47)","v":0},{"$f":"SUM(X5:X47)","v":0}]
["2026年前期（3月1日以降）",null,null,null,null,null,null,null,null,null,null,null,null,null,null,null,null,null,null,null,null,null,null,"㈱中日総合サービス"]

{"sheet":"松阪市・多気郡","index":12,"n_rows":49,"n_cols":24,"rows_kept":49,"cut":false,"hidden":false,"merged":[[0,1,1,4],[0,17,0,20],[0,22,1,23],[1,17,1,20],[0,5,0,6],[0,8,0,14],[1,5,1,6],[1,8,1,14],[2,9,2,10],[3,0,3,1],[3,3,3,5],[3,7,3,9],[3,11,3,13],[3,19,3,21],[27,0,27,1],[27,3,27,5],[27,7,27,9],[27,11,27,13],[27,15,27,17],[27,19,27,21],[3,15,3,17]]}
["折込日",null,null,null,null,"広告主",null,null,null,null,null,null,null,null,null,null,"サイズ",null,null,null,null,"取次店"]
[null,null,null,null,null,"チラシ銘柄",null,null,null,null,null,null,null,null,null,null,"部数",{"$f":"A6+A30","v":0}]
[]
["地区",null,null,"中日新聞",null,null,"枚数","朝日新聞",null,null,"枚数","毎日新聞",null,null,"枚数","読売新聞",null,null,"枚数","その他",null,null,"枚数","備考"]
["松阪市",null,null,240230101010,"松阪中央NSI",1700,null,240230202010,"松阪M",5750,null,null,null,"",null,240230405001,"松阪第一",1900,null,null,null,null,null,"松阪市全域の場合"]
[{"$f":"SUM(G26,K26,O26,S26,W26)","v":0},{"$f":"SUM(F26,J26,N26,R26,V26)","v":34600},null,240230101040,"松阪大黒田NSI",1600,null,240230202020,"松阪東部M",950,null,null,null,"",null,240230405002,"松阪相可",400,null,null,null,null,null,"多気郡相可200枚"]
[null,null,null,240230101100,"松阪川井町NSI",1150,null,240230202040,"三渡川M",1000,null,null,null,"",null,240230405003,"松阪南",700,null,null,null,null,null,"をプラス"]
[null,null,null,240230101080,"松阪鎌田NＡMSI",1250,null,240230202050,"嬉野M",500,null,null,null,"",null,240230405009,"松阪西部",150]
[null,null,null,240230101070,"松阪大平NＡMSI",2100,null,240230202060,"粥見M",250,null,null,null,"",null,240230405005,"松阪北部",800]
[null,null,null,240230101030,"松阪まえのへたNSI",1600,null,null,null,"",null,null,null,"",null,240230405007,"うれしの",350]
[null,null,null,240230101090,"松阪桜町NSI",1550,null,null,null,"",null,null,null,"",null,240230405008,"三雲",900]
[null,null,null,240230101110,"松阪徳和NMSI",1000,null,null,null,"",null,null,null,"",null,null,null,""]
[null,null,null,240230101020,"松阪櫛田NMSI",1200,null,null,null,"",null,null,null,"",null,null,null,""]
[null,null,"*1",240230101050,"松阪片野橋NAMSI",1300,null,null,null,"",null,null,null,"",null,null,null,""]
[null,null,null,240230101130,"六軒NMSI",2400,null,null,null,"",null,null,null,"",null,null,null,"",null,null,null,null,null,"*1多気郡多気町"]
[null,null,null,240230101160,"伊勢中川NASI",2200,null,null,null,"",null,null,null,"",null,null,null,"",null,null,null,null,null,"    1,000枚含む"]
[null,null,null,240230101140,"柿野NS",850,null,null,null,"",null,null,null,"",null,null,null,""]
[null,null,null,240230101150,"飯高NAMSI",1050,null,null,null,"",null,null,null,"",null,null,null,""]
[null,null,null,null,null,"",null,null,null,"",null,null,null,"",null,null,null,""]
[null,null,null,null,null,"",null,null,null,"",null,null,null,"",null,null,null,""]
[null,null,null,null,null,"",null,null,null,"",null,null,null,"",null,null,null,""]
[null,null,null,null,null,"",null,null,null,"",null,null,null,"",null,null,null,""]
[null,null,null,null,null,"",null,null,null,"",null,null,null,"",null,null,null,""]
[null,null,null,null,null,"",null,null,null,"",null,null,null,"",null,null,null,""]
[null,null,null,null,null,"",null,null,null,"",null,null,null,"",null,null,null,""]
[null,null,null,null,{"$f":"CONCATENATE(FIXED(COUNTA(E5:E25),0,0),\"　店\")","v":"14　店"},{"$f":"SUM(F5:F25)","v":20950},{"$f":"SUM(G5:G25)","v":0},null,{"$f":"CONCATENATE(FIXED(COUNTA(I5:I25),0,0),\"　店\")","v":"5　店"},{"$f":"SUM(J5:J25)","v":8450},{"$f":"SUM(K5:K25)","v":0},null,{"$f":"CONCATENATE(FIXED(COUNTA(M5:M25),0,0),\"　店\")","v":"0　店"},{"$f":"SUM(N5:N25)","v":0},{"$f":"SUM(O5:O25)","v":0},null,{"$f":"CONCATENATE(FIXED(COUNTA(Q5:Q25),0,0),\"　店\")","v":"7　店"},{"$f":"SUM(R5:R25)","v":5200},{"$f":"SUM(S5:S25)","v":0},null,{"$f":"CONCATENATE(FIXED(COUNTA(U5:U25),0,0),\"　店\")","v":"0　店"},{"$f":"SUM(V5:V25)","v":0},{"$f":"SUM(W5:W25)","v":0},{"$f":"SUM(X5:X25)","v":0}]
[]
["地区",null,null,"中日新聞",null,null,"枚数","朝日新聞",null,null,"枚数","毎日新聞",null,null,"枚数","読売新聞",null,null,"枚数","その他",null,null,"枚数","備考"]
["多気郡",null,"*1",240250101010,"相可NAMSI",1500,null,240250202020,"明和松阪MI",1900,null,null,null,"",null,240250405002,"明和",500,null,null,null,null,null,"多気町全域の場合"]
[{"$f":"SUM(G48,K48,O48,S48,W48)","v":0},{"$f":"SUM(F48,J48,N48,R48,V48)","v":8400},null,240250101040,"明和NSI",1800,null,null,null,"",null,null,null,"",null,null,null,"",null,null,null,null,null,"松阪市松阪片野橋"]
[null,null,"*2",240250101020,"三瀬谷NAMSI",800,null,null,null,"",null,null,null,"",null,null,null,"",null,null,null,null,null,"1,000枚をプラス"]
[null,null,null,240250101030,"大台宮川NAMSI",700,null,null,null,"",null,null,null,"",null,null,null,""]
[{"$f":"SUM(F41,J41,N41,R41,V41)","v":0},{"$f":"SUM(G41,K41,O41,S41,W41)","v":0},"*3",240250101050,"栃原NAMSI",1200,null,null,null,"",null,null,null,"",null,null,null,"",null,null,null,null,null,"明和町全域の場合"]
[null,null,null,null,null,"",null,null,null,"",null,null,null,"",null,null,null,"",null,null,null,null,null,"伊勢市大淀850枚"]
[null,null,null,null,null,"",null,null,null,"",null,null,null,"",null,null,null,"",null,null,null,null,null,"をプラス"]
[null,null,null,null,null,"",null,null,null,"",null,null,null,"",null,null,null,""]
[null,null,null,null,null,"",null,null,null,"",null,null,null,"",null,null,null,"",null,null,null,null,null,"大台町全域の場合"]
[null,null,null,null,null,"",null,null,null,"",null,null,null,"",null,null,null,"",null,null,null,null,null,"度会郡滝原100枚"]
[null,null,null,null,null,"",null,null,null,"",null,null,null,"",null,null,null,"",null,null,null,null,null,"をプラス"]
[null,null,null,null,null,"",null,null,null,"",null,null,null,"",null,null,null,""]
[null,null,null,null,null,"",null,null,null,"",null,null,null,"",null,null,null,"",null,null,null,null,null,"*1松阪市200枚を含む"]
[null,null,null,null,null,"",null,null,null,"",null,null,null,"",null,null,null,"",null,null,null,null,null,"*2*3度会郡大紀町の"]
[null,null,null,null,null,"",null,null,null,"",null,null,null,"",null,null,null,"",null,null,null,null,null,"       一部を含む"]
[null,null,null,null,null,"",null,null,null,"",null,null,null,"",null,null,null,""]
[null,null,null,null,null,"",null,null,null,"",null,null,null,"",null,null,null,""]
[null,null,null,null,null,"",null,null,null,"",null,null,null,"",null,null,null,""]
[null,null,null,null,null,"",null,null,null,"",null,null,null,"",null,null,null,""]
[null,null,null,null,{"$f":"CONCATENATE(FIXED(COUNTA(E29:E47),0,0),\"　店\")","v":"5　店"},{"$f":"SUM(F29:F47)","v":6000},{"$f":"SUM(G29:G47)","v":0},null,{"$f":"CONCATENATE(FIXED(COUNTA(I29:I47),0,0),\"　店\")","v":"1　店"},{"$f":"SUM(J29:J47)","v":1900},{"$f":"SUM(K29:K47)","v":0},null,{"$f":"CONCATENATE(FIXED(COUNTA(M29:M47),0,0),\"　店\")","v":"0　店"},{"$f":"SUM(N29:N47)","v":0},{"$f":"SUM(O29:O47)","v":0},null,{"$f":"CONCATENATE(FIXED(COUNTA(Q29:Q47),0,0),\"　店\")","v":"1　店"},{"$f":"SUM(R29:R47)","v":500},{"$f":"SUM(S29:S47)","v":0},null,{"$f":"CONCATENATE(FIXED(COUNTA(U29:U47),0,0),\"　店\")","v":"0　店"},{"$f":"SUM(V29:V47)","v":0},{"$f":"SUM(W29:W47)","v":0},{"$f":"SUM(X29:X47)","v":0}]
["2026年前期（3月1日以降）",null,null,null,null,null,null,null,null,null,null,null,null,null,null,null,null,null,null,null,null,null,null,"㈱中日総合サービス"]

{"sheet":"伊勢市・度会郡","index":13,"n_rows":49,"n_cols":24,"rows_kept":49,"cut":false,"hidden":false,"merged":[[0,1,1,4],[0,17,0,20],[0,22,1,23],[1,17,1,20],[0,5,0,6],[0,8,0,14],[1,5,1,6],[1,8,1,14],[2,9,2,10],[3,0,3,1],[3,3,3,5],[3,7,3,9],[3,11,3,13],[3,19,3,21],[27,0,27,1],[27,3,27,5],[27,7,27,9],[27,11,27,13],[27,15,27,17],[27,19,27,21],[3,15,3,17]]}
["折込日",null,null,null,null,"広告主",null,null,null,null,null,null,null,null,null,null,"サイズ",null,null,null,null,"取次店"]
[null,null,null,null,null,"チラシ銘柄",null,null,null,null,null,null,null,null,null,null,"部数",{"$f":"A6+A30","v":0}]
[]
["地区",null,null,"中日新聞",null,null,"枚数","朝日新聞",null,null,"枚数","毎日新聞",null,null,"枚数","読売新聞",null,null,"枚数","その他",null,null,"枚数","備考"]
["伊勢市",null,null,240305101010,"伊勢市駅前NS",1650,null,240305202020,"五十鈴川I",950,null,240305303030,"川端",1050,null,240305405001,"伊勢西",950,null,"240305I09015","伊勢新聞/伊勢",950]
[{"$f":"SUM(G26,K26,O26,S26,W26)","v":0},{"$f":"SUM(F26,J26,N26,R26,V26)","v":39200},null,240305101030,"伊勢市厚生NS",1550,null,240305202050,"伊勢I",1850,null,240305303040,"伊勢",1200,null,240305405006,"伊勢玉城",700]
[null,null,null,240305101040,"伊勢市中央NS",1650,null,240305202060,"伊勢田丸M",1850,null,240305303060,"伊勢市北部AI",1650,null,240305405003,"伊勢北部",1400]
[null,null,null,240305101080,"伊勢市北部NS",1400,null,null,null,"",null,240305303110,"伊勢東部",1350,null,240305405004,"伊勢神宮前",700]
[null,null,null,240305101060,"伊勢市西部NS",1500,null,null,null,"",null,240305303080,"小俣町",350,null,240305405005,"小俣",900]
[null,null,null,240305101070,"伊勢市南部NS",2250,null,null,null,"",null,240305303100,"伊勢二見AI",1700,null,null,null,""]
[null,null,null,240305101110,"三重小俣NSI",2600,null,null,null,"",null,240305303090,"玉城S",950,null,null,null,""]
[null,null,null,240305101130,"伊勢市東部NS",1350,null,null,null,"",null,240305303120,"神社港AI",600,null,null,null,""]
[null,null,"*1",240305101090,"大淀NSI",2050,null,null,null,"",null,null,null,"",null,null,null,"",null,null,null,null,null,"*1多気郡明和町明和"]
[null,null,null,240305101100,"田丸NI",2250,null,null,null,"",null,null,null,"",null,null,null,"",null,null,null,null,null,"    850枚含む"]
[null,null,null,240305101120,"わたらいNAMSI",1850,null,null,null,"",null,null,null,"",null,null,null,""]
[null,null,null,null,null,"",null,null,null,"",null,null,null,"",null,null,null,""]
[null,null,null,null,null,"",null,null,null,"",null,null,null,"",null,null,null,""]
[null,null,null,null,null,"",null,null,null,"",null,null,null,"",null,null,null,""]
[null,null,null,null,null,"",null,null,null,"",null,null,null,"",null,null,null,""]
[null,null,null,null,null,"",null,null,null,"",null,null,null,"",null,null,null,""]
[null,null,null,null,null,"",null,null,null,"",null,null,null,"",null,null,null,""]
[null,null,null,null,null,"",null,null,null,"",null,null,null,"",null,null,null,""]
[null,null,null,null,null,"",null,null,null,"",null,null,null,"",null,null,null,""]
[null,null,null,null,null,"",null,null,null,"",null,null,null,"",null,null,null,""]
[null,null,null,null,null,"",null,null,null,"",null,null,null,"",null,null,null,""]
[null,null,null,null,{"$f":"CONCATENATE(FIXED(COUNTA(E5:E25),0,0),\"　店\")","v":"11　店"},{"$f":"SUM(F5:F25)","v":20100},{"$f":"SUM(G5:G25)","v":0},null,{"$f":"CONCATENATE(FIXED(COUNTA(I5:I25),0,0),\"　店\")","v":"3　店"},{"$f":"SUM(J5:J25)","v":4650},{"$f":"SUM(K5:K25)","v":0},null,{"$f":"CONCATENATE(FIXED(COUNTA(M5:M25),0,0),\"　店\")","v":"8　店"},{"$f":"SUM(N5:N25)","v":8850},{"$f":"SUM(O5:O25)","v":0},null,{"$f":"CONCATENATE(FIXED(COUNTA(Q5:Q25),0,0),\"　店\")","v":"5　店"},{"$f":"SUM(R5:R25)","v":4650},{"$f":"SUM(S5:S25)","v":0},null,{"$f":"CONCATENATE(FIXED(COUNTA(U5:U25),0,0),\"　店\")","v":"1　店"},{"$f":"SUM(V5:V25)","v":950},{"$f":"SUM(W5:W25)","v":0},{"$f":"SUM(X5:X25)","v":0}]
[]
["地区",null,null,"中日新聞",null,null,"枚数","朝日新聞",null,null,"枚数","毎日新聞",null,null,"枚数","読売新聞",null,null,"枚数","その他",null,null,"枚数","備考"]
["度会郡",null,"*1",240354101020,"滝原NAMSI",400,null,null,null,"",null,null,null,"",null,240354404010,"紀勢",1150,null,null,null,null,null,"度会郡全域の場合"]
[{"$f":"SUM(G48,K48,O48,S48,W48)","v":0},{"$f":"SUM(F48,J48,N48,R48,V48)","v":6800},null,240354101030,"阿曽NAMI",200,null,null,null,"",null,null,null,"",null,240355405002,"南勢",250,null,null,null,null,null,"わたらい、田丸（伊勢市欄）"]
[null,null,null,240354101040,"大内山NAMSI",300,null,null,null,"",null,null,null,"",null,null,null,"",null,null,null,null,null,"をプラス"]
[null,null,null,240354101050,"柏崎NAMSI",450,null,null,null,"",null,null,null,"",null,null,null,""]
[null,null,null,240355101060,"大紀町錦AMSI",350,null,null,null,"",null,null,null,"",null,null,null,""]
[null,null,null,240355101090,"三重中島NAMSI",350,null,null,null,"",null,null,null,"",null,null,null,"",null,null,null,null,null,"*1多気郡大台町"]
[null,null,null,240355101105,"慥柄AMI",100,null,null,null,"",null,null,null,"",null,null,null,"",null,null,null,null,null,"    100枚含む"]
[null,null,null,240355101100,"贄NAMI",200,null,null,null,"",null,null,null,"",null,null,null,""]
[null,null,null,240355101110,"東宮AMSI",250,null,null,null,"",null,null,null,"",null,null,null,""]
[null,null,null,240355101120,"吉津（神前）NAMSI",450,null,null,null,"",null,null,null,"",null,null,null,""]
[null,null,null,240355101130,"島津（古和）NAMSI",250,null,null,null,"",null,null,null,"",null,null,null,""]
[null,null,null,240355101140,"南勢町東NAMSI",950,null,null,null,"",null,null,null,"",null,null,null,""]
[null,null,null,240355101150,"南勢町西NAMSI",1150,null,null,null,"",null,null,null,"",null,null,null,""]
[null,null,null,null,null,"",null,null,null,"",null,null,null,"",null,null,null,""]
[null,null,null,null,null,"",null,null,null,"",null,null,null,"",null,null,null,""]
[null,null,null,null,null,"",null,null,null,"",null,null,null,"",null,null,null,""]
[null,null,null,null,null,"",null,null,null,"",null,null,null,"",null,null,null,""]
[null,null,null,null,null,"",null,null,null,"",null,null,null,"",null,null,null,""]
[null,null,null,null,null,"",null,null,null,"",null,null,null,"",null,null,null,""]
[null,null,null,null,{"$f":"CONCATENATE(FIXED(COUNTA(E29:E47),0,0),\"　店\")","v":"13　店"},{"$f":"SUM(F29:F47)","v":5400},{"$f":"SUM(G29:G47)","v":0},null,{"$f":"CONCATENATE(FIXED(COUNTA(I29:I47),0,0),\"　店\")","v":"0　店"},{"$f":"SUM(J29:J47)","v":0},{"$f":"SUM(K29:K47)","v":0},null,{"$f":"CONCATENATE(FIXED(COUNTA(M29:M47),0,0),\"　店\")","v":"0　店"},{"$f":"SUM(N29:N47)","v":0},{"$f":"SUM(O29:O47)","v":0},null,{"$f":"CONCATENATE(FIXED(COUNTA(Q29:Q47),0,0),\"　店\")","v":"2　店"},{"$f":"SUM(R29:R47)","v":1400},{"$f":"SUM(S29:S47)","v":0},null,{"$f":"CONCATENATE(FIXED(COUNTA(U29:U47),0,0),\"　店\")","v":"0　店"},{"$f":"SUM(V29:V47)","v":0},{"$f":"SUM(W29:W47)","v":0},{"$f":"SUM(X29:X47)","v":0}]
["2026年前期（3月1日以降）",null,null,null,null,null,null,null,null,null,null,null,null,null,null,null,null,null,null,null,null,null,null,"㈱中日総合サービス"]

{"sheet":"鳥羽市・志摩市・尾鷲市","index":14,"n_rows":49,"n_cols":24,"rows_kept":49,"cut":false,"hidden":false,"merged":[[0,1,1,4],[0,17,0,20],[0,22,1,23],[1,17,1,20],[0,5,0,6],[0,8,0,14],[1,5,1,6],[1,8,1,14],[2,9,2,10],[3,0,3,1],[3,3,3,5],[3,7,3,9],[3,11,3,13],[32,19,32,21],[3,19,3,21],[15,0,15,1],[15,3,15,5],[15,7,15,9],[15,11,15,13],[15,15,15,17],[15,19,15,21],[3,15,3,17],[32,0,32,1],[32,3,32,5],[32,7,32,9],[32,11,32,13],[32,15,32,17]]}
["折込日",null,null,null,null,"広告主",null,null,null,null,null,null,null,null,null,null,"サイズ",null,null,null,null,"取次店"]
[null,null,null,null,null,"チラシ銘柄",null,null,null,null,null,null,null,null,null,null,"部数",{"$f":"A6+A18+A35","v":0}]
[]
["地区",null,null,"中日新聞",null,null,"枚数","朝日新聞",null,null,"枚数","毎日新聞",null,null,"枚数","読売新聞",null,null,"枚数","その他",null,null,"枚数","備考"]
["鳥羽市",null,null,240340101010,"鳥羽NAMSI",1350,null,null,null,"",null,240340303010,null,"",null,240340405001,"鳥羽",400]
[{"$f":"SUM(G14,K14,O14,S14,W14)","v":0},{"$f":"SUM(F14,J14,N14,R14,V14)","v":4050},null,240340101020,"鳥羽南部NAMSI",1800,null,null,null,"",null,null,null,"",null,240340405002,"鳥羽南",500]
[null,null,null,null,null,"",null,null,null,"",null,null,null,"",null,null,null,""]
[null,null,null,null,null,"",null,null,null,"",null,null,null,"",null,null,null,""]
[null,null,null,null,null,"",null,null,null,"",null,null,null,"",null,null,null,""]
[null,null,null,null,null,"",null,null,null,"",null,null,null,"",null,null,null,""]
[null,null,null,null,null,"",null,null,null,"",null,null,null,"",null,null,null,""]
[null,null,null,null,null,"",null,null,null,"",null,null,null,"",null,null,null,""]
[null,null,null,null,null,"",null,null,null,"",null,null,null,"",null,null,null,""]
[null,null,null,null,{"$f":"CONCATENATE(FIXED(COUNTA(E5:E13),0,0),\"　店\")","v":"2　店"},{"$f":"SUM(F5:F13)","v":3150},{"$f":"SUM(G5:G13)","v":0},null,{"$f":"CONCATENATE(FIXED(COUNTA(I5:I13),0,0),\"　店\")","v":"0　店"},{"$f":"SUM(J5:J13)","v":0},{"$f":"SUM(K5:K13)","v":0},null,{"$f":"CONCATENATE(FIXED(COUNTA(M5:M13),0,0),\"　店\")","v":"0　店"},{"$f":"SUM(N5:N13)","v":0},{"$f":"SUM(O5:O13)","v":0},null,{"$f":"CONCATENATE(FIXED(COUNTA(Q5:Q13),0,0),\"　店\")","v":"2　店"},{"$f":"SUM(R5:R13)","v":900},{"$f":"SUM(S5:S13)","v":0},null,{"$f":"CONCATENATE(FIXED(COUNTA(U5:U13),0,0),\"　店\")","v":"0　店"},{"$f":"SUM(V5:V13)","v":0},{"$f":"SUM(W5:W13)","v":0},{"$f":"SUM(X5:X13)","v":0}]
[]
["地区",null,null,"中日新聞",null,null,"枚数","朝日新聞",null,null,"枚数","毎日新聞",null,null,"枚数","読売新聞",null,null,"枚数","その他",null,null,"枚数","備考"]
["志摩市",null,null,240349101010,"磯部NAMSI",1600,null,null,null,"",null,null,null,"",null,240350405005,"磯部",400]
[{"$f":"SUM(G31,K31,O31,S31,W31)","v":0},{"$f":"SUM(F31,J31,N31,R31,V31)","v":12250},null,240349101020,"鵜方NAMSI",4700,null,null,null,"",null,null,null,"",null,240350405004,"浜島",600]
[null,null,null,240350101060,"浜島NAMSI",950,null,null,null,"",null,null,null,"",null,240350405002,"阿児",500]
[null,null,null,240350101050,"和具NAMSI",1750,null,null,null,"",null,null,null,"",null,240350405006,"鵜方",450]
[null,null,null,null,null,"",null,null,null,"",null,null,null,"",null,240350405001,"大王",400]
[null,null,null,null,null,"",null,null,null,"",null,null,null,"",null,240350405003,"志摩",900]
[null,null,null,null,null,"",null,null,null,"",null,null,null,"",null,null,null,""]
[null,null,null,null,null,"",null,null,null,"",null,null,null,"",null,null,null,""]
[null,null,null,null,null,"",null,null,null,"",null,null,null,"",null,null,null,""]
[null,null,null,null,null,"",null,null,null,"",null,null,null,"",null,null,null,""]
[null,null,null,null,null,"",null,null,null,"",null,null,null,"",null,null,null,""]
[null,null,null,null,null,"",null,null,null,"",null,null,null,"",null,null,null,""]
[null,null,null,null,null,"",null,null,null,"",null,null,null,"",null,null,null,""]
[null,null,null,null,null,"",null,null,null,"",null,null,null,"",null,null,null,""]
[null,null,null,null,{"$f":"CONCATENATE(FIXED(COUNTA(E17:E30),0,0),\"　店\")","v":"4　店"},{"$f":"SUM(F17:F30)","v":9000},{"$f":"SUM(G17:G30)","v":0},null,{"$f":"CONCATENATE(FIXED(COUNTA(I17:I30),0,0),\"　店\")","v":"0　店"},{"$f":"SUM(J17:J30)","v":0},{"$f":"SUM(K17:K30)","v":0},null,{"$f":"CONCATENATE(FIXED(COUNTA(M17:M30),0,0),\"　店\")","v":"0　店"},{"$f":"SUM(N17:N30)","v":0},{"$f":"SUM(O17:O30)","v":0},null,{"$f":"CONCATENATE(FIXED(COUNTA(Q17:Q30),0,0),\"　店\")","v":"6　店"},{"$f":"SUM(R17:R30)","v":3250},{"$f":"SUM(S17:S30)","v":0},null,{"$f":"CONCATENATE(FIXED(COUNTA(U17:U30),0,0),\"　店\")","v":"0　店"},{"$f":"SUM(V17:V30)","v":0},{"$f":"SUM(W17:W30)","v":0},{"$f":"SUM(X21:X30)","v":0}]
[]
["地区",null,null,"中日新聞",null,null,"枚数","朝日新聞",null,null,"枚数","毎日新聞",null,null,"枚数","読売新聞",null,null,"枚数","その他",null,null,"枚数","備考"]
["尾鷲市",null,null,240345101010,"尾鷲NAMSI",2750,null,null,null,"",null,null,null,"",null,240345405001,"尾鷲",850]
[{"$f":"SUM(G48,K48,O48,S48,W48)","v":0},{"$f":"SUM(F48,J48,N48,R48,V48)","v":4450},null,240345101020,"九鬼NAMI",200,null,null,null,"",null,null,null,"",null,null,null,""]
[null,null,null,240345101030,"三木里NAMSI",350,null,null,null,"",null,null,null,"",null,null,null,""]
[null,null,null,240345101040,"賀田NAMSI",300,null,null,null,"",null,null,null,"",null,null,null,""]
[null,null,null,null,null,"",null,null,null,"",null,null,null,"",null,null,null,""]
[null,null,null,null,null,"",null,null,null,"",null,null,null,"",null,null,null,""]
[null,null,null,null,null,"",null,null,null,"",null,null,null,"",null,null,null,""]
[null,null,null,null,null,"",null,null,null,"",null,null,null,"",null,null,null,""]
[null,null,null,null,null,"",null,null,null,"",null,null,null,"",null,null,null,""]
[null,null,null,null,null,"",null,null,null,"",null,null,null,"",null,null,null,""]
[null,null,null,null,null,"",null,null,null,"",null,null,null,"",null,null,null,""]
[null,null,null,null,null,"",null,null,null,"",null,null,null,"",null,null,null,""]
[null,null,null,null,null,"",null,null,null,"",null,null,null,"",null,null,null,""]
[null,null,null,null,null,"",null,null,null,"",null,null,null,"",null,null,null,""]
[null,null,null,null,{"$f":"CONCATENATE(FIXED(COUNTA(E34:E47),0,0),\"　店\")","v":"4　店"},{"$f":"SUM(F34:F47)","v":3600},{"$f":"SUM(G34:G47)","v":0},null,{"$f":"CONCATENATE(FIXED(COUNTA(I34:I47),0,0),\"　店\")","v":"0　店"},{"$f":"SUM(J34:J47)","v":0},{"$f":"SUM(K34:K47)","v":0},null,{"$f":"CONCATENATE(FIXED(COUNTA(M34:M47),0,0),\"　店\")","v":"0　店"},{"$f":"SUM(N34:N47)","v":0},{"$f":"SUM(O34:O47)","v":0},null,{"$f":"CONCATENATE(FIXED(COUNTA(Q34:Q47),0,0),\"　店\")","v":"1　店"},{"$f":"SUM(R34:R47)","v":850},{"$f":"SUM(S34:S47)","v":0},null,{"$f":"CONCATENATE(FIXED(COUNTA(U34:U47),0,0),\"　店\")","v":"0　店"},{"$f":"SUM(V34:V47)","v":0},{"$f":"SUM(W34:W47)","v":0},{"$f":"SUM(X34:X47)","v":0}]
["2026年前期（3月1日以降）",null,null,null,null,null,null,null,null,null,null,null,null,null,null,null,null,null,null,null,null,null,null,"㈱中日総合サービス"]

{"sheet":"熊野市・北牟婁郡・南牟婁郡","index":15,"n_rows":49,"n_cols":24,"rows_kept":49,"cut":false,"hidden":false,"merged":[[0,1,1,4],[0,17,0,20],[0,22,1,23],[1,17,1,20],[0,5,0,6],[0,8,0,14],[1,5,1,6],[1,8,1,14],[2,9,2,10],[3,0,3,1],[3,3,3,5],[3,7,3,9],[3,11,3,13],[31,19,31,21],[3,19,3,21],[15,0,15,1],[15,3,15,5],[15,7,15,9],[15,11,15,13],[15,15,15,17],[15,19,15,21],[3,15,3,17],[31,0,31,1],[31,3,31,5],[31,7,31,9],[31,11,31,13],[31,15,31,17]]}
["折込日",null,null,null,null,"広告主",null,null,null,null,null,null,null,null,null,null,"サイズ",null,null,null,null,"取次店"]
[null,null,null,null,null,"チラシ銘柄",null,null,null,null,null,null,null,null,null,null,"部数",{"$f":"A6+A18+A34","v":0}]
[]
["地区",null,null,"中日新聞",null,null,"枚数","朝日新聞",null,null,"枚数","毎日新聞",null,null,"枚数","読売新聞",null,null,"枚数","その他",null,null,"枚数","備考"]
["熊野市",null,null,240320101010,"熊野",1000,null,240320202010,"熊野MSI",850,null,null,null,"",null,240320405001,"熊野",1050]
[{"$f":"SUM(G14,K14,O14,S14,W14)","v":0},{"$f":"SUM(F14,J14,N14,R14,V14)","v":5350},null,240320101030,"御浜・熊野南部AMSI",2350,null,null,null,"",null,null,null,"",null,null,null,""]
[null,null,null,240320101020,"二木島NAMSI",100,null,null,null,"",null,null,null,"",null,null,null,""]
[null,null,null,null,null,"",null,null,null,"",null,null,null,"",null,null,null,""]
[null,null,null,null,null,"",null,null,null,"",null,null,null,"",null,null,null,""]
[null,null,null,null,null,"",null,null,null,"",null,null,null,"",null,null,null,""]
[null,null,null,null,null,"",null,null,null,"",null,null,null,"",null,null,null,""]
[null,null,null,null,null,"",null,null,null,"",null,null,null,"",null,null,null,""]
[null,null,null,null,null,"",null,null,null,"",null,null,null,"",null,null,null,""]
[null,null,null,null,{"$f":"CONCATENATE(FIXED(COUNTA(E5:E13),0,0),\"　店\")","v":"3　店"},{"$f":"SUM(F5:F13)","v":3450},{"$f":"SUM(G5:G13)","v":0},null,{"$f":"CONCATENATE(FIXED(COUNTA(I5:I13),0,0),\"　店\")","v":"1　店"},{"$f":"SUM(J5:J13)","v":850},{"$f":"SUM(K5:K13)","v":0},null,{"$f":"CONCATENATE(FIXED(COUNTA(M5:M13),0,0),\"　店\")","v":"0　店"},{"$f":"SUM(N5:N13)","v":0},{"$f":"SUM(O5:O13)","v":0},null,{"$f":"CONCATENATE(FIXED(COUNTA(Q5:Q13),0,0),\"　店\")","v":"1　店"},{"$f":"SUM(R5:R13)","v":1050},{"$f":"SUM(S5:S13)","v":0},null,{"$f":"CONCATENATE(FIXED(COUNTA(U5:U13),0,0),\"　店\")","v":"0　店"},{"$f":"SUM(V5:V13)","v":0},{"$f":"SUM(W5:W13)","v":0},{"$f":"SUM(X5:X13)","v":0}]
[]
["地区",null,null,"中日新聞",null,null,"枚数","朝日新聞",null,null,"枚数","毎日新聞",null,null,"枚数","読売新聞",null,null,"枚数","その他",null,null,"枚数","備考"]
["北牟婁郡",null,null,240360101010,"紀伊長島NAMSI",2050,null,240360202030,null,"",null,null,null,"",null,240360405010,"紀北町",350]
[{"$f":"SUM(G30,K30,O30,S30,W30)","v":0},{"$f":"SUM(F30,J30,N30,R30,V30)","v":5050},null,240360101030,"島勝AMSI",350,null,null,null,"",null,null,null,"",null,240360405020,"海山",200]
[null,null,null,240360101020,"白浦M",250,null,null,null,"",null,null,null,"",null,null,null,""]
[null,null,null,240360101050,"相賀NAMSI",1250,null,null,null,"",null,null,null,"",null,null,null,""]
[null,null,null,240360101060,"引本NAMI",600,null,null,null,"",null,null,null,"",null,null,null,""]
[null,null,null,null,null,"",null,null,null,"",null,null,null,"",null,null,null,""]
[null,null,null,null,null,"",null,null,null,"",null,null,null,"",null,null,null,""]
[null,null,null,null,null,"",null,null,null,"",null,null,null,"",null,null,null,""]
[null,null,null,null,null,"",null,null,null,"",null,null,null,"",null,null,null,""]
[null,null,null,null,null,"",null,null,null,"",null,null,null,"",null,null,null,""]
[null,null,null,null,null,"",null,null,null,"",null,null,null,"",null,null,null,""]
[null,null,null,null,null,"",null,null,null,"",null,null,null,"",null,null,null,""]
[null,null,null,null,null,"",null,null,null,"",null,null,null,"",null,null,null,""]
[null,null,null,null,{"$f":"CONCATENATE(FIXED(COUNTA(E17:E29),0,0),\"　店\")","v":"5　店"},{"$f":"SUM(F17:F29)","v":4500},{"$f":"SUM(G17:G29)","v":0},null,{"$f":"CONCATENATE(FIXED(COUNTA(I17:I29),0,0),\"　店\")","v":"0　店"},{"$f":"SUM(J17:J29)","v":0},{"$f":"SUM(K17:K29)","v":0},null,{"$f":"CONCATENATE(FIXED(COUNTA(M17:M29),0,0),\"　店\")","v":"0　店"},{"$f":"SUM(N17:N29)","v":0},{"$f":"SUM(O17:O29)","v":0},null,{"$f":"CONCATENATE(FIXED(COUNTA(Q17:Q29),0,0),\"　店\")","v":"2　店"},{"$f":"SUM(R17:R29)","v":550},{"$f":"SUM(S17:S29)","v":0},null,{"$f":"CONCATENATE(FIXED(COUNTA(U17:U29),0,0),\"　店\")","v":"0　店"},{"$f":"SUM(V17:V29)","v":0},{"$f":"SUM(W17:W29)","v":0},{"$f":"SUM(X20:X29)","v":0}]
[]
["地区",null,null,"中日新聞",null,null,"枚数","朝日新聞",null,null,"枚数","毎日新聞",null,null,"枚数","読売新聞",null,null,"枚数","その他",null,null,"枚数","備考"]
["南牟婁郡",null,null,240365101005,"井田",50,null,null,null,"",null,240365303020,"井田AS",300,null,240365405001,"紀伊南郡",1550]
[{"$f":"SUM(G48,K48,O48,S48,W48)","v":0},{"$f":"SUM(F48,J48,N48,R48,V48)","v":4350},null,240365101007,"井田上野",50,null,null,null,"",null,240365303030,"井田上野AS",300,null,null,null,""]
[null,null,null,null,null,"",null,null,null,"",null,240365303040,"鵜殿CAS",1450,null,null,null,""]
[null,null,null,null,null,"",null,null,null,"",null,240365303050,"成川紀宝CAS",650,null,null,null,""]
[null,null,null,null,null,"",null,null,null,"",null,null,null,"",null,null,null,""]
[null,null,null,null,null,"",null,null,null,"",null,null,null,"",null,null,null,""]
[null,null,null,null,null,"",null,null,null,"",null,null,null,"",null,null,null,""]
[null,null,null,null,null,"",null,null,null,"",null,null,null,"",null,null,null,""]
[null,null,null,null,null,"",null,null,null,"",null,null,null,"",null,null,null,""]
[null,null,null,null,null,"",null,null,null,"",null,null,null,"",null,null,null,""]
[null,null,null,null,null,"",null,null,null,"",null,null,null,"",null,null,null,""]
[null,null,null,null,null,"",null,null,null,"",null,null,null,"",null,null,null,""]
[null,null,null,null,null,"",null,null,null,"",null,null,null,"",null,null,null,""]
[null,null,null,null,null,"",null,null,null,"",null,null,null,"",null,null,null,""]
[null,null,null,null,null,"",null,null,null,"",null,null,null,"",null,null,null,""]
[null,null,null,null,{"$f":"CONCATENATE(FIXED(COUNTA(E33:E47),0,0),\"　店\")","v":"2　店"},{"$f":"SUM(F33:F47)","v":100},{"$f":"SUM(G33:G47)","v":0},null,{"$f":"CONCATENATE(FIXED(COUNTA(I33:I47),0,0),\"　店\")","v":"0　店"},{"$f":"SUM(J33:J47)","v":0},{"$f":"SUM(K33:K47)","v":0},null,{"$f":"CONCATENATE(FIXED(COUNTA(M33:M47),0,0),\"　店\")","v":"4　店"},{"$f":"SUM(N33:N47)","v":2700},{"$f":"SUM(O33:O47)","v":0},null,{"$f":"CONCATENATE(FIXED(COUNTA(Q33:Q47),0,0),\"　店\")","v":"1　店"},{"$f":"SUM(R33:R47)","v":1550},{"$f":"SUM(S33:S47)","v":0},null,{"$f":"CONCATENATE(FIXED(COUNTA(U33:U47),0,0),\"　店\")","v":"0　店"},{"$f":"SUM(V33:V47)","v":0},{"$f":"SUM(W33:W47)","v":0},{"$f":"SUM(X33:X47)","v":0}]
["2026年前期（3月1日以降）",null,null,null,null,null,null,null,null,null,null,null,null,null,null,null,null,null,null,null,null,null,null,"㈱中日総合サービス"]

{"sheet":"伊賀市・名張市・新宮市","index":16,"n_rows":49,"n_cols":24,"rows_kept":49,"cut":false,"hidden":false,"merged":[[0,1,1,4],[0,17,0,20],[0,22,1,23],[1,17,1,20],[0,5,0,6],[0,8,0,14],[1,5,1,6],[1,8,1,14],[2,9,2,10],[3,0,3,1],[3,3,3,5],[3,7,3,9],[3,11,3,13],[39,19,39,21],[3,19,3,21],[23,0,23,1],[23,3,23,5],[23,7,23,9],[23,11,23,13],[23,15,23,17],[23,19,23,21],[3,15,3,17],[39,0,39,1],[39,3,39,5],[39,7,39,9],[39,11,39,13],[39,15,39,17]]}
["折込日",null,null,null,null,"広告主",null,null,null,null,null,null,null,null,null,null,"サイズ",null,null,null,null,"取次店"]
[null,null,null,null,null,"チラシ銘柄",null,null,null,null,null,null,null,null,null,null,"部数",{"$f":"A6+A26+A42","v":0}]
[]
["地区",null,null,"中日新聞",null,null,"枚数","朝日新聞",null,null,"枚数","毎日新聞",null,null,"枚数","読売新聞",null,null,"枚数","その他",null,null,"枚数","備考"]
["伊賀市",null,null,240310101010,"伊賀上野I",1550,null,240310202010,"*1上野MS",2800,null,240330303010,"*2上野北AS",1050,null,240310405001,"伊賀上野M",2500,null,"240310X06010","朝日・日経　上野MS",250,null,"日本経済新聞へ折込む場合"]
[{"$f":"SUM(G22,K22,O22,S22,W22)","v":0},{"$f":"SUM(F22,J22,N22,R22,V22)","v":17250},null,240310101020,"伊賀上野北部",1000,null,240310202040,"*3上野南S",100,null,null,null,"",null,240310405002,"伊賀中央",1700,null,"240330X06010","毎日・日経　上野北AS",50,null,"*1…250枚プラス"]
[null,null,null,240330101070,"諏訪丸柱I",100,null,240310201040,"*4依那古CMSI",350,null,null,null,"",null,null,null,"",null,"240310X06020","朝日・日経　上野南S",50,null,"*2…50枚プラス"]
[null,null,null,240330101030,"新堂NAMSI",500,null,240310201070,"*5伊賀神戸CMSI",500,null,null,null,"",null,null,null,"",null,"240310X06030","朝日・日経　依那古CMSI",50,null,"*3…50枚プラス"]
[null,null,null,null,null,"",null,240310202050,"*6島ヶ原CMSI",350,null,null,null,"",null,null,null,"",null,"240310X06040","朝日・日経　伊賀神戸CMSI",50,null,"*4…50枚プラス"]
[null,null,null,null,null,"",null,240330201020,"*7阿山柘植CMSI",1400,null,null,null,"",null,null,null,"",null,"240310X06050","朝日・日経　島ヶ原CMSI",50,null,"*5…50枚プラス"]
[null,null,null,null,null,"",null,240330201050,"*8伊賀山田CMSI",1150,null,null,null,"",null,null,null,"",null,"240330X06020","朝日・日経　阿山柘植CMSI",50,null,"*6…50枚プラス"]
[null,null,null,null,null,"",null,240330202010,"*9青山町CMSI",1550,null,null,null,"",null,null,null,"",null,"240330X06030","朝日・日経　伊賀山田CMSI",50,null,"*7…50枚プラス"]
[null,null,null,null,null,"",null,null,null,"",null,null,null,"",null,null,null,"",null,"240330X06040","朝日・日経　青山町CMSI",50,null,"*8…50枚プラス"]
[null,null,null,null,null,"",null,null,null,"",null,null,null,"",null,null,null,"",null,null,null,null,null,"*9…50枚プラス"]
[null,null,null,null,null,"",null,null,null,"",null,null,null,"",null,null,null,""]
[null,null,null,null,null,"",null,null,null,"",null,null,null,"",null,null,null,"",null,null,null,null,null,"伊賀市全域の場合"]
[null,null,null,null,null,"",null,null,null,"",null,null,null,"",null,null,null,"",null,null,null,null,null,"名張市"]
[null,null,null,null,null,"",null,null,null,"",null,null,null,"",null,null,null,"",null,null,null,null,null,"桔梗ヶ丘・美旗・古山100枚"]
[null,null,null,null,null,"",null,null,null,"",null,null,null,"",null,null,null,"",null,null,null,null,null,"名張・上野南部50枚"]
[null,null,null,null,null,"",null,null,null,"",null,null,null,"",null,null,null,"",null,null,null,null,null,"をプラス"]
[null,null,null,null,null,"",null,null,null,"",null,null,null,"",null,null,null,""]
[null,null,null,null,{"$f":"CONCATENATE(FIXED(COUNTA(E5:E21),0,0),\"　店\")","v":"4　店"},{"$f":"SUM(F5:F21)","v":3150},{"$f":"SUM(G5:G21)","v":0},null,{"$f":"CONCATENATE(FIXED(COUNTA(I5:I21),0,0),\"　店\")","v":"8　店"},{"$f":"SUM(J5:J21)","v":8200},{"$f":"SUM(K5:K21)","v":0},null,{"$f":"CONCATENATE(FIXED(COUNTA(M5:M21),0,0),\"　店\")","v":"1　店"},{"$f":"SUM(N5:N21)","v":1050},{"$f":"SUM(O5:O21)","v":0},null,{"$f":"CONCATENATE(FIXED(COUNTA(Q5:Q21),0,0),\"　店\")","v":"2　店"},{"$f":"SUM(R5:R21)","v":4200},{"$f":"SUM(S5:S21)","v":0},null,{"$f":"CONCATENATE(FIXED(COUNTA(U5:U21),0,0),\"　店\")","v":"9　店"},{"$f":"SUM(V5:V21)","v":650},{"$f":"SUM(W5:W21)","v":0},{"$f":"SUM(X5:X21)","v":0}]
[]
["地区",null,null,"中日新聞",null,null,"枚数","朝日新聞",null,null,"枚数","毎日新聞",null,null,"枚数","読売新聞",null,null,"枚数","その他",null,null,"枚数","備考"]
["名張市",null,"*1",240315101030,"桔梗ヶ丘・美旗・古山",450,null,240315202040,"*3名張駅前MS",2700,null,240315303020,"名張中央",1100,null,240315405001,"名張",5350,null,"240315X06010","朝日・日経　名張駅前MS",200,null,"*1伊賀市100枚含む"]
[{"$f":"SUM(G38,K38,O38,S38,W38)","v":0},{"$f":"SUM(F38,J38,N38,R38,V38)","v":15700},"*2",240315101010,"名張・上野南部",850,null,240315202020,"*4名張中央MS",3500,null,240315303040,"名張東",900,null,null,null,"",null,"240315X06020","朝日・日経　名張中央MS",250,null,"*2伊賀市50枚含む"]
[null,null,null,240315101020,"名張東部",400,null,null,null,"",null,null,null,"",null,null,null,""]
[null,null,null,null,null,"",null,null,null,"",null,null,null,"",null,null,null,"",null,null,null,null,null,"日本経済新聞へ折込む場合"]
[null,null,null,null,null,"",null,null,null,"",null,null,null,"",null,null,null,"",null,null,null,null,null,"*3…200枚プラス"]
[null,null,null,null,null,"",null,null,null,"",null,null,null,"",null,null,null,"",null,null,null,null,null,"*4…250枚プラス"]
[null,null,null,null,null,"",null,null,null,"",null,null,null,"",null,null,null,""]
[null,null,null,null,null,"",null,null,null,"",null,null,null,"",null,null,null,""]
[null,null,null,null,null,"",null,null,null,"",null,null,null,"",null,null,null,""]
[null,null,null,null,null,"",null,null,null,"",null,null,null,"",null,null,null,""]
[null,null,null,null,null,"",null,null,null,"",null,null,null,"",null,null,null,""]
[null,null,null,null,null,"",null,null,null,"",null,null,null,"",null,null,null,""]
[null,null,null,null,null,"",null,null,null,"",null,null,null,"",null,null,null,""]
[null,null,null,null,{"$f":"CONCATENATE(FIXED(COUNTA(E25:E37),0,0),\"　店\")","v":"3　店"},{"$f":"SUM(F25:F37)","v":1700},{"$f":"SUM(G25:G37)","v":0},null,{"$f":"CONCATENATE(FIXED(COUNTA(I25:I37),0,0),\"　店\")","v":"2　店"},{"$f":"SUM(J25:J37)","v":6200},{"$f":"SUM(K25:K37)","v":0},null,{"$f":"CONCATENATE(FIXED(COUNTA(M25:M37),0,0),\"　店\")","v":"2　店"},{"$f":"SUM(N25:N37)","v":2000},{"$f":"SUM(O25:O37)","v":0},null,{"$f":"CONCATENATE(FIXED(COUNTA(Q25:Q37),0,0),\"　店\")","v":"1　店"},{"$f":"SUM(R25:R37)","v":5350},{"$f":"SUM(S25:S37)","v":0},null,{"$f":"CONCATENATE(FIXED(COUNTA(U25:U37),0,0),\"　店\")","v":"2　店"},{"$f":"SUM(V25:V37)","v":450},{"$f":"SUM(W25:W37)","v":0},{"$f":"SUM(X28:X37)","v":0}]
[]
["地区",null,null,"中日新聞",null,null,"枚数","朝日新聞",null,null,"枚数","毎日新聞",null,null,"枚数","読売新聞",null,null,"枚数","その他",null,null,"枚数","備考"]
["新宮市",null,null,240325101010,"新宮",350,null,null,null,null,null,240325303010,"*1新宮AS",1550,null,240325405001,"紀南新宮",1000,null,"240325X02010","毎日・日経新聞/新宮",150,null,"日本経済新聞へ折込む場合"]
[{"$f":"SUM(G48,K48,O48,S48,W48)","v":0},{"$f":"SUM(F48,J48,N48,R48,V48)","v":4400},null,null,null,null,null,null,null,null,null,240325303020,"*2三輪崎",500,null,240325405002,"新宮西",700,null,"240325X03010","毎日・日経新聞/三輪崎",150,null,"*1…150枚プラス"]
[null,null,null,null,null,null,null,null,null,null,null,null,null,null,null,null,null,null,null,null,null,null,null,"*2…150枚プラス"]
[]
[]
[]
[]
[null,null,null,null,{"$f":"CONCATENATE(FIXED(COUNTA(E41:E47),0,0),\"　店\")","v":"1　店"},{"$f":"SUM(F41:F47)","v":350},{"$f":"SUM(G41:G47)","v":0},null,{"$f":"CONCATENATE(FIXED(COUNTA(I41:I47),0,0),\"　店\")","v":"0　店"},{"$f":"SUM(J41:J47)","v":0},{"$f":"SUM(K41:K47)","v":0},null,{"$f":"CONCATENATE(FIXED(COUNTA(M41:M47),0,0),\"　店\")","v":"2　店"},{"$f":"SUM(N41:N47)","v":2050},{"$f":"SUM(O41:O47)","v":0},null,{"$f":"CONCATENATE(FIXED(COUNTA(Q41:Q47),0,0),\"　店\")","v":"2　店"},{"$f":"SUM(R41:R47)","v":1700},{"$f":"SUM(S41:S47)","v":0},null,{"$f":"CONCATENATE(FIXED(COUNTA(U41:U47),0,0),\"　店\")","v":"2　店"},{"$f":"SUM(V41:V47)","v":300},{"$f":"SUM(W41:W47)","v":0},{"$f":"SUM(X41:X47)","v":0}]
["2026年前期（3月1日以降）",null,null,null,null,null,null,null,null,null,null,null,null,null,null,null,null,null,null,null,null,null,null,"㈱中日総合サービス"]